{"text_format":"1","workbook":"xlsx","n_sheets":17,"sheets":["DATA INPUT","COURSES","EAP Announcement","POLICE REGISTRATION","Form-Fields","DATA ROW","SBC APP","NSE APP","OFFER","VISA","ADMISSION","STUDY PLAN","INVOICE","REGISTRATION","ACCOMM","CHECK-IN","CHINESE"],"not_rendered":{"charts":0,"images":9,"macros":1,"external_links":0,"defined_names":61,"comments":0,"pivot_tables":0},"unopened":[],"bounds":{"document_bytes":16777216,"sheet_cells":100000,"rows_first":2000,"rows_last":500,"rows_between":2000,"halvings":0,"cell_chars":16384,"cell_head_chars":4096},"cells_cut":0,"cells_raw":0,"read":"whole","date_system":"1900"}

{"sheet":"DATA INPUT","index":0,"n_rows":176,"n_cols":8,"rows_kept":176,"cut":false,"hidden":false,"merged":[[59,0,59,6],[101,0,101,6],[152,0,152,7],[153,0,153,7],[154,0,154,7],[155,0,155,7],[156,0,156,7],[172,0,172,7],[175,0,175,7],[162,0,163,3],[165,0,166,3]]}
[]
[]
["SBC INTERNATIONAL STUDENT DETAILED APPLICATION FORM"]
["Version updated on Oct 20, 2016"]
[]
["Application to the Following University："]
["The Sino-British College, University of Shanghai for Science and Technology (SBC)"]
["Applicant information is confidential and used only for the purpose of Offer and Visa Application  "]
["* This fields are compulsory"]
[]
["Personal Information: "]
["Please select and complete (ENGLISH / BLOCK Letters) "]
[]
["Title * Mr / Mrs / Ms / Miss ",null,null,null,null,null,null,"(PLEASE SELECT)"]
[]
["Given Name * ",null,null,null,null,null,null,"(PLEASE INPUT)"]
[]
["Family Name * ",null,null,null,null,null,null,"(PLEASE INPUT)"]
[]
["English Name/Other name * ",null,null,null,null,null,null,"(PLEASE INPUT)"]
[]
["Date of Birth * Day / Month / Year ",null,null,null,null,null,null,"(PLEASE INPUT)"]
[]
["Gender * ",null,null,null,null,"(MALE / FEMALE)",null,"(PLEASE SELECT)"]
[]
["Country of Birth",null,null,null,null,null,null,"(PLEASE INPUT)"]
[]
["Nationality * ",null,null,null,null,null,null,"(PLEASE INPUT)"]
[]
["Country of Permanent Residence * ",null,null,null,null,null,null,"(PLEASE INPUT)"]
[]
["Home Address * (Room; Block; Street; City)",null,null,null,null,null,null,"(PLEASE INPUT)"]
[]
["Postcode * ",null,null,null,null,null,null,"(PLEASE INPUT)"]
[]
["Applicant's Mobile Phone * ",null,null,null,null,null,null,"(PLEASE INPUT)"]
[]
["Applicant’s Email Address *  ",null,null,null,null,null,null,"(PLEASE INPUT)"]
[]
["Applicant’s Wechat ID",null,null,null,null,null,null,"(PLEASE INPUT)"]
[]
["Applicant’s Passport Number * ",null,null,null,null,null,null,"(PLEASE INPUT)"]
[]
["Applicant’s ID Number * ",null,null,null,null,null,null,"(PLEASE INPUT)"]
[]
["Parent's / Guardian's Name",null,null,null,null,null,null,"(PLEASE INPUT)"]
[]
["Parent’s Contact Phone * ",null,null,null,null,null,null,"(PLEASE INPUT)"]
[]
["Parent's Address* (If it is different with the Home Address)",null,null,null,null,null,null,"(PLEASE INPUT)"]
[]
["Parent’s Email * ：",null,null,null,null,null,null,"(PLEASE INPUT)"]
[]
[]
["Education Plans"]
["Please select"]
[]
["Which School do you wish to apply to? *"]
[]
["(BUSINESS AND COMMUNICATION / ENGINEERING)",null,null,null,null,null,null,"(PLEASE SELECT)"]
[]
["In which Department at the University do you intend to study? * "]
[null,null,null,null,null,null,null,"(PLEASE SELECT ONE)"]
[]
["Which academic session do you intend to start your course?                 "]
[null,null,null,null,null," (09/2017 or 09/2018)",null,"(PLEASE SELECT)"]
[]
["Please state the qualification you are applying for  "]
["Please press the link to view:",null,"COURSE LIST",null,null,null,null,"(PLEASE SELECT ONE)"]
[]
["Please state the Pathway you are applying for  "]
[null,null,null,null,null,null,null,"(PLEASE SELECT)"]
[]
["Please state the Year of Entry you are applying for  "]
["Year 1 (Foundation) / Year 2 (Diploma)",null,null,null,null,null,null,"(PLEASE SELECT)"]
[]
["Please Indicate Preferred Accommodation:",null,null,null,null,null,null,"(PLEASE SELECT)"]
[]
["English Language Ability "]
["Please select and complete (ENGLISH / BLOCK Letters) "]
[]
["Is English your first language?* ",null,null,null,null,"(YES / NO)",null,"(PLEASE SELECT)"]
[]
["Is/was English the language of instruction for your highschool?* "]
[null,null,null,null,null,"(YES / NO)",null,"(PLEASE SELECT)"]
[]
["English Language Test Type that you have taken or plan to take:"]
[null,null,null,null,null,"(IELTS/TOEFL/TOEFL IBT/GCSE/OLEVEL/OTHER)",null,"(PLEASE SELECT)"]
[]
["Score obtained*  (If not taken yet, please enter \"FUTURE DATE:\")",null,null,null,null,null,null,"(PLEASE INPUT)"]
[]
["Date Obtained*",null,null,null,null,null,null,"(PLEASE SELECT)"]
[]
["Chinese Language Ability"]
["(Chinese is not necessary for SBC, but we are interested to know your ability, if any)"]
["Please select"]
[]
["What is your Chinese language ability ?",null,null,null,null,null,null,"(PLEASE SELECT)"]
[]
["If you have taken HSK Chinese test, what was your score?",null,null,null,null,null,null,"(PLEASE SELECT)"]
[]
["All courses at SBC are taught in English. SBC would like to know if you be interested in taking an additional module of Chinese each semester:",null,null,null,null,null,null,"(PLEASE SELECT)"]
[]
["Education History"]
["Please complete (ENGLISH / BLOCK Letters) "]
[]
["Highest Level of Studies Achieved",null,null,null,null,null,null,"(PLEASE SELECT)"]
[]
["Name of School/ University",null,null,null,null,null,null,"(PLEASE INPUT)"]
[]
["Address",null,null,null,null,null,null,"(PLEASE INPUT)"]
[]
["Start Date",null,null,null,null,null,null,"(PLEASE INPUT)"]
[]
["Finish Date",null,null,null,null,null,null,"(PLEASE INPUT)"]
[]
["GPA",null,null,null,null,null,null,"(PLEASE INPUT)"]
[]
["Certificate Received?"]
[null,null,null,null,null,"(GCSE / A Levels / IB / SAT / AP / BA / BSc / BEng / Other)",null,"(PLEASE SELECT)"]
[]
["Studied Major",null,null,null,null,null,null,"(PLEASE INPUT)"]
[]
["Studied Subjects",null,null,null,null,null,null,"(PLEASE INPUT)"]
[]
["Working Experience: (If Necessary)"]
["Please complete (ENGLISH / BLOCK Letters)"]
[]
["Company Name",null,null,null,null,null,null,"(PLEASE INPUT)"]
[]
["Address",null,null,null,null,null,null,"(PLEASE INPUT)"]
[]
["Title",null,null,null,null,null,null,"(PLEASE INPUT)"]
[]
["Duties/Responsibilities",null,null,null,null,null,null,"(PLEASE INPUT)"]
[]
["Start Date",null,null,null,null,null,null,"(PLEASE INPUT)"]
[]
["Finish Date",null,null,null,null,null,null,"(PLEASE INPUT)"]
[]
["Application Information: "]
["Please select and complete (ENGLISH / BLOCK Letters) "]
[]
["How did you hear about The Sino-British College? ",null,null,null,null,null,null,"(PLEASE SELECT)"]
[]
["Application Date (Today's date) Day / Month / Year ",null,null,null,null,null,null,"(PLEASE INPUT)"]
[]
[]
[]
["Important Notes Regarding Study and Progression"]
["I understand the notes on study and progression",null,null,null,null,"(YES / NO)",null,"(PLEASE SELECT)"]
[]
["Please be advised that you must achieve the entry requirements of your target course and university in SBC Year 2 in order to progress to your target course, pathway or university at the end of SBC Year 2.  Entry requirements may be subject to change by the partner universities and the decision of accepting student onto respective courses rests entirely on the partner universities. If your application for progression onto your target course and university at the end of SBC Year 2 is not accepted, you may be able to choose other courses from other partner universities for which you meet the requirements. Progression to UK partner universities may be subject to age restrictions. Students interested in a 2+1+1 (1+1+1) pathway that are not accepted by the UK partner university may be offered an alternative 2+2 (1+2) pathway at an appropriate course and university (the course name may be subject to change but would have similar course content). In the event that for whatever reason, the UK visa cannot be granted, SBC will not be held responsible. If the UK visa is not granted, students may be allowed to continue to complete the 4+0 (3+0) pathway at SBC in Shanghai on a case-by-case basis (the course name may be subject to change but would have similar course content). "]
["University progression will depend on receiving a conditional offer via the UCAS application process and there maybe quotas for certain nationalities such as EU and UK students. UCAS applications must therefore be submitted as early as possible during the SBC Year 2. Even though EU and UK students are referred to as “Home students”, EU students may be required to demonstrate English language proficiency if they are not native English speakers."]
["Home students with families that have resided outside of the UK for an extended period may be subject to “International” tuition fees during any period of study at a UK partner university."]
["Please note that if for any reason a student elects not to take SBC’s English For Academic Purposes (EAP) course or does not achieve the required EAP grade, partner universities may require IELTS or TOEFL for progression to their courses. Depending on the preferred university or course of study, students may need an EAP qualification above the minimum outlined in the NCUK guarantee. EAP Exemption Request Forms must be signed and submitted to Registry during registration. It should also be recognised that some SELTs have their validity time limited (e.g. an IELTS qualification is valid for two years) and students will need a valid English language qualification when applying for university. If a SELT is used for entrance requirements, but will expire before the students applies to university, the student should enrol in the NCUK EAP module or take another SELT that will be valid when the student enters university. Students exempted from EAP will be required to complete a Study Skills module to prepare them for study in a UK University. Degrees issued by SBC’s partner universities are internationally recognized. If students from Hongkong, Macao and Taiwan wish to have their degrees endorsed, please make your own arrangements with the relevant Chinese MOE department. "]
["Please consult with the International Office, Student Management Department or Overseas Services Department for any updates to the NCUK entry directory."]
[]
[]
["Student Data Confidentiality"]
[]
[]
["I consent to allowing SBC to contact my parents or guardians regarding my progress at SBC",null,null,null,null,"(YES / NO)",null,"(PLEASE SELECT)"]
[]
[]
["I understand that if I wish to have a copy of my SBC academic performance or class attendance records sent to my parents that an application in writing needs to be submitted to the SBC Registry Office (NOT to the SBC International Office).",null,null,null,null,"(YES / NO)",null,"(PLEASE SELECT)"]
[]
[]
[]
["Student Declaration"]
[]
[]
["I confirm that to the best of my knowledge all information submitted in this application form is true and that all application support documents and translations are genuine. If it is discovered that any application information is not true or that any documentation or translation is false, SBC reserves the right to reject the application or expel the student prior to or subsequent to admission to the university."]
[null,null,null,null,null,"(YES / NO)",null,"(PLEASE SELECT)"]
[]
["* If you are sending this application form to the University by e-mail then in the absence of this signature you should note that the e-mailing of this application constitutes your personal certification that the details in this application are correct."]

{"sheet":"COURSES","index":1,"n_rows":665,"n_cols":5,"rows_kept":665,"cut":false,"hidden":false,"merged":[]}
[]
["COURSE CHOICES AND PROGRAMME FLEXIBILITY AT SBC, USST"]
[]
["Please follow the links below to see the many choices of courses, pathways and universities at SBC:"]
[]
[]
["CHOICE OF DEGREE SUBJECT",null,"CHOICE OF DEGREE AWARDING UNIVERSITY"]
[]
["School of Business and Economics",null,"School of Business and Economics"]
["Business Management",null,"University of Bradford"]
["Events Management",null,"University of Huddersfield"]
[null,null,"University of Leeds"]
[null,null,"Leeds Beckett University"]
["School of Science and Engineering",null,"Liverpool John Moores University"]
["Electronic and Electrical Engineering",null,"Manchester Metropolitan University"]
["Mechanical Engineering",null,"University of Salford"]
[null,null,"University of Sheffield"]
[null,null,"Sheffield Hallam University"]
["CHOICE OF PATHWAY"]
[null,null,"School of Science and Engineering"]
["School of Business and Economics"]
["4+0 (3+0)",null,"University of Bradford"]
["3+1 (2+1)",null,"University of Huddersfield"]
["2+2 (1+2)",null,"University of Leeds"]
["2+1+1 (1+1+1)",null,"Leeds Beckett University"]
["School of Science and Engineering",null,"Liverpool John Moores University"]
["4+0 (3+0)",null,"Manchester Metropolitan University"]
["3+1 (2+1)",null,"University of Salford"]
["2+2 (1+2)",null,"University of Sheffield"]
["2+1+1 (1+1+1)",null,"Sheffield Hallam University"]
[]
[]
[]
["CHOICE OF PROGRAMMES BY DEGREE SUBJECT"]
[]
["SCHOOL OF BUSINESS AND ECONOMICS"]
[]
["Department of Business Management"]
[]
["Degree Qualification","Degree Subject","Diploma Subject","Pathway","Degree Awarded by"]
["BA (Hons)","Accountancy ","Business Management","2+2 (1+2)","University of Huddersfield"]
["BA (Hons)","Accountancy and Finance (ACCA, CIMA and ICEAW accredited)","Business Management","2+2 (1+2)","University of Huddersfield"]
["BA (Hons)","Accountancy with Financial Services","Business Management","2+2 (1+2)","University of Huddersfield"]
["BSc (Hons)","Accounting and Finance","Business Management","2+2 (1+2)","Liverpool John Moores University"]
["BSc (Hons)","Accounting and Finance","Business Management","2+2 (1+2)","University of Bradford"]
["BSc (Hons)","Accounting and Finance (including work placement)","Business Management","2+2 (1+2)","University of Bradford"]
["BSc (Hons)","Accounting and Finance","Business Management","2+2 (1+2)","University of Salford"]
["BSc (Hons)","Accounting and Finance with Professional Experience Year","Business Management","2+2 (1+2)","University of Salford"]
["BA (Hons)","Accounting and Financial Management","Business Management","2+2 (1+2)","University of Sheffield"]
["BA (Hons)","Accounting and Financial Management and Mathematics","Business Management","2+2 (1+2)","University of Sheffield"]
["BSc (Hons)","Air Transport and Logistics Management","Business Management","2+2 (1+2)","University of Huddersfield"]
["BA (Hons)","Business & Management","Business Management","2+2 (1+2)","Leeds Beckett University"]
["BSc (Hons)","Business and Economics","Business Management","2+2 (1+2)","University of Salford"]
["BSc (Hons)","Business and Economics with Professional Experience Year","Business Management","2+2 (1+2)","University of Salford"]
["BA (Hons)","Business and Financial Management","Business Management","2+2 (1+2)","Sheffield Hallam University"]
["BSc (Hons)","Business and Financial Management","Business Management","2+2 (1+2)","University of Salford"]
["BSc (Hons)","Business and Financial Management with Professional Experience Year","Business Management","2+2 (1+2)","University of Salford"]
["BA (Hons)","Business and Human Resource Management","Business Management","2+2 (1+2)","Sheffield Hallam University"]
["BSc (Hons)","Business and Management","Business Management","2+2 (1+2)","University of Salford"]
["BSc (Hons)","Business and Management with Professional Experience Year","Business Management","2+2 (1+2)","University of Salford"]
["BSc (Hons)","Business and Management Studies","Business Management","2+2 (1+2)","University of Bradford"]
["BSc (Hons)","Business and Management Studies (including work placement)","Business Management","2+2 (1+2)","University of Bradford"]
["BA (Hons)","Business and Marketing","Business Management","2+2 (1+2)","Sheffield Hallam University"]
["BA (Hons)","Business and Public Relations","Business Management","2+2 (1+2)","Liverpool John Moores University"]
["BSc (Hons)","Business and Tourism Management","Business Management","2+2 (1+2)","University of Salford"]
["BSc (Hons)","Business and Tourism Management with Professional Experience Year","Business Management","2+2 (1+2)","University of Salford"]
["BSc (Hons)","Business Economics","Business Management","2+2 (1+2)","University of Bradford"]
["BSc (Hons)","Business Information Technology","Business Management","2+2 (1+2)","University of Salford"]
["BSc (Hons)","Business Information Technology with Professional Experience Year","Business Management","2+2 (1+2)","University of Salford"]
["BA (Hons)","Business Management","Business Management","2+2 (1+2)","Liverpool John Moores University"]
["BA (Hons)","Business Management","Business Management","2+2 (1+2)","Manchester Metropolitan University"]
["BA (Hons)","Business Management (4 years exchange)","Business Management","2+2 (1+2)","Manchester Metropolitan University"]
["BA (Hons)","Business Management (at MMU Cheshire)","Business Management","2+2 (1+2)","Manchester Metropolitan University"]
["BA (Hons)","Business Management (Sandwich)","Business Management","2+2 (1+2)","Manchester Metropolitan University"]
["BA (Hons)","Business Management ","Business Management","2+2 (1+2)","University of Huddersfield"]
["BA (Hons)","Business Management ","Business Management","2+2 (1+2)","University of Sheffield"]
["BA (Hons)","Business Management and Mathematics","Business Management","2+2 (1+2)","University of Sheffield"]
["BA (Hons)","Business Management with Marketing (at MMU Cheshire)","Business Management","2+2 (1+2)","Manchester Metropolitan University"]
["BSc (Hons)","Business Management with Sport","Business Management","2+2 (1+2)","University of Salford"]
["BSc (Hons)","Business Management with Sport with Professional Experience Year","Business Management","2+2 (1+2)","University of Salford"]
["BA (Hons)","Business Management","Business Management","2+2 (1+2)","Sheffield Hallam University"]
["BA (Hons)","Business Studies","Business Management","2+2 (1+2)","Liverpool John Moores University"]
["BA (Hons)","Business Studies","Business Management","2+2 (1+2)","Sheffield Hallam University"]
["BA (Hons)","Business Studies","Business Management","2+2 (1+2)","University of Huddersfield"]
["BSc (Hons)","Economics","Business Management","2+2 (1+2)","University of Bradford"]
["BA (Hons)","Events Management","Business Management","2+2 (1+2)","Manchester Metropolitan University"]
["BA (Hons)","Events Management (Sandwich)","Business Management","2+2 (1+2)","Manchester Metropolitan University"]
["BSc (Hons)","Financial Economics","Business Management","2+2 (1+2)","University of Bradford"]
["BSc (Hons)","Financial Economics (including work placement)","Business Management","2+2 (1+2)","University of Bradford"]
["BSc (Hons)","Hospitality Management","Business Management","2+2 (1+2)","Manchester Metropolitan University"]
["BA (Hons)","Human Resource Management","Business Management","2+2 (1+2)","Liverpool John Moores University"]
["BSc (Hons)","Human Resource Management","Business Management","2+2 (1+2)","University of Bradford"]
["BSc (Hons)","Human Resource Management (including work placement)","Business Management","2+2 (1+2)","University of Bradford"]
["BA (Hons)","Human Resource Management","Business Management","2+2 (1+2)","University of Leeds"]
["BSc (Hons)","Human Resource Management","Business Management","2+2 (1+2)","University of Salford"]
["BSc (Hons)","Human Resource Management with Professional Experience Year","Business Management","2+2 (1+2)","University of Salford"]
["BSc (Hons)","International  Business and Management","Business Management","2+2 (1+2)","University of Bradford"]
["BSc (Hons)","International Business and Management (including work placement)","Business Management","2+2 (1+2)","University of Bradford"]
["BA (Hons)","International Business","Business Management","2+2 (1+2)","Sheffield Hallam University"]
["BA (Hons)","International Business","Business Management","2+2 (1+2)","University of Huddersfield"]
["BSc (Hons)","International Business","Business Management","2+2 (1+2)","University of Leeds"]
["BSc (Hons)","International Business","Business Management","2+2 (1+2)","University of Salford"]
["BSc (Hons)","International Business with Professional Experience Year","Business Management","2+2 (1+2)","University of Salford"]
["BA (Hons)","International Business Management","Business Management","2+2 (1+2)","Manchester Metropolitan University"]
["BA (Hons)","International Business Management (with overseas study)","Business Management","2+2 (1+2)","Manchester Metropolitan University"]
["BA (Hons)","International Business Management (with placement)","Business Management","2+2 (1+2)","Manchester Metropolitan University"]
["BSc (Hons)","International Events Management","Business Management","2+2 (1+2)","University of Salford"]
["BSc (Hons)","International Events Management with Professional Experience Year","Business Management","2+2 (1+2)","University of Salford"]
["BSc (Hons)","Management","Business Management","2+2 (1+2)","University of Leeds"]
["BA (Hons)","Management and the Human Resource","Business Management","2+2 (1+2)","University of Leeds"]
["BSc (Hons)","Management with Marketing","Business Management","2+2 (1+2)","University of Leeds"]
["BA (Hons)","Marketing","Business Management","2+2 (1+2)","Liverpool John Moores University"]
["BSc (Hons)","Marketing","Business Management","2+2 (1+2)","University of Bradford"]
["BSc (Hons)","Marketing (including work placement)","Business Management","2+2 (1+2)","University of Bradford"]
["BSc (Hons)","Marketing","Business Management","2+2 (1+2)","University of Salford"]
["BSc (Hons)","Marketing with Professional Experience Year","Business Management","2+2 (1+2)","University of Salford"]
["BSc (Hons)","Supply Chain Management","Business Management","2+2 (1+2)","University of Huddersfield"]
["BA (Hons)","Tourism Management","Business Management","2+2 (1+2)","Manchester Metropolitan University"]
["BSc (Hons)","Transport and Logistics Management","Business Management","2+2 (1+2)","University of Huddersfield"]
[null,null,null,null,"Back to Menu"]
[]
["Department of Events Management"]
[]
["Degree Qualification","Degree Subject","Diploma Subject","Pathway","Degree Awarded by"]
["BSc (Hons)","Business and Tourism Management","Events Management","2+2 (1+2)","University of Salford"]
["BSc (Hons)","Business and Tourism Management with Professional Experience Year","Events Management","2+2 (1+2)","University of Salford"]
["BSc (Hons)","Business Economics","Events Management","2+2 (1+2)","University of Bradford"]
["BSc (Hons)","Economics","Events Management","2+2 (1+2)","University of Bradford"]
["BA (Hons)","Events Management","Events Management","2+2 (1+2)","Leeds Beckett University"]
["BA (Hons)","Events Management","Events Management","2+2 (1+2)","Liverpool John Moores University"]
["BA (Hons)","Events Management","Events Management","2+1+1 (1+1+1)","University of Huddersfield"]
["BA (Hons)","Events Management","Events Management","2+2 (1+2)","University of Huddersfield"]
["BA (Hons)","Events Management","Events Management","3+1 (2+1)","University of Huddersfield"]
["BA (Hons)","Events Management","Events Management","4+0 (3+0)","University of Huddersfield"]
["BA (Hons)","Events Management ","Events Management","2+2 (1+2)","Manchester Metropolitan University"]
["BA (Hons)","Events Management (Sandwich)","Events Management","2+2 (1+2)","Manchester Metropolitan University"]
["BSc (Hons)","Financial Economics","Events Management","2+2 (1+2)","University of Bradford"]
["BSc (Hons)","Financial Economics including work placement","Events Management","2+2 (1+2)","University of Bradford"]
["BSc (Hons)","Hospitality Business Management","Events Management","2+2 (1+2)","Manchester Metropolitan University"]
["BA (Hons)","Hospitality Management","Events Management","2+2 (1+2)","University of Huddersfield"]
["BSc (Hons)","International Events Management","Events Management","2+2 (1+2)","University of Salford"]
["BSc (Hons)","International Events Management with Professional Experience Year","Events Management","2+2 (1+2)","University of Salford"]
["BSc (Hons)","International Events Management","Events Management","2+2 (1+2)","Sheffield Hallam University"]
["BSc (Hons)","Sport Business Management","Events Management","2+2 (1+2)","Sheffield Hallam University"]
["BSc (Hons)","Sport Events Management","Events Management","2+2 (1+2)","Leeds Beckett University"]
["BA (Hons)","Tourism Management","Events Management","2+2 (1+2)","Manchester Metropolitan University"]
["BA (Hons)","Travel and Tourism Management","Events Management","2+2 (1+2)","University of Huddersfield"]
[null,null,null,null,"Back to Menu"]
[]
["SCHOOL OF SCIENCE AND ENGINEERING"]
[]
["Department of Electronic and Electrical Engineering"]
[]
["Degree Qualification","Degree Subject","Diploma Subject","Pathway","Degree Awarded by"]
["BSc (Hons)","Computer Studies","Electronic & Electrical Engineering","2+2 (1+2)","Liverpool John Moores University"]
["BSc (Hons)","Computer Technology","Electronic & Electrical Engineering","2+2 (1+2)","Liverpool John Moores University"]
["BEng (Hons)","Digital Electronics with a year in Industry","Electronic & Electrical Engineering","2+2 (1+2)","University of Sheffield"]
["BEng (Hons)","Electrical & Electronic Engineering","Electronic & Electrical Engineering","2+2 (1+2)","University of Bradford"]
["BEng (Hons)","Electrical & Electronic Engineering (including work placement)","Electronic & Electrical Engineering","2+2 (1+2)","University of Bradford"]
["BEng (Hons)","Electrical and Electronic Engineering","Electronic & Electrical Engineering","2+2 (1+2)","Liverpool John Moores University"]
["BEng (Hons)","Electrical and Electronic Engineering","Electronic & Electrical Engineering","2+2 (1+2)","Manchester Metropolitan University"]
["BEng (Hons)","Electrical and Electronic Engineering","Electronic & Electrical Engineering","2+2 (1+2)","Sheffield Hallam University"]
["BEng (Hons)","Electrical and Electronic Engineering","Electronic & Electrical Engineering","2+2 (1+2)","University of Sheffield"]
["BEng (Hons)","Electrical Engineering","Electronic & Electrical Engineering","2+2 (1+2)","University of Sheffield"]
["BEng (Hons)","Electrical Engineering with a year in Industry","Electronic & Electrical Engineering","2+2 (1+2)","University of Sheffield"]
["BEng (Hons)","Electronic and Communications Engineering","Electronic & Electrical Engineering","2+2 (1+2)","University of Sheffield"]
["BEng (Hons)","Electronic and Communications Engineering with a year in Industry","Electronic & Electrical Engineering","2+2 (1+2)","University of Sheffield"]
["BEng (Hons)","Electronic and Communications Engineering","Electronic & Electrical Engineering","2+2 (1+2)","University of Leeds"]
["BEng (Hons)","Electronic and Communications Engineering","Electronic & Electrical Engineering","2+2 (1+2)","University of Huddersfield"]
["BEng (Hons)","Electronic and Electrical Engineering","Electronic & Electrical Engineering","2+2 (1+2)","University of Huddersfield"]
["BEng (Hons)","Electronic and Electrical Engineering","Electronic & Electrical Engineering","2+2 (1+2)","University of Leeds"]
["BEng (Hons)","Electronic Engineering","Electronic & Electrical Engineering","2+2 (1+2)","Sheffield Hallam University"]
["BEng (Hons)","Electronic Engineering","Electronic & Electrical Engineering","2+2 (1+2)","University of Huddersfield"]
["BEng (Hons)","Electronic Engineering","Electronic & Electrical Engineering","2+2 (1+2)","University of Leeds"]
["BEng (Hons)","Electronic Engineering","Electronic & Electrical Engineering","2+2 (1+2)","University of Sheffield"]
["BEng (Hons)","Electronic Engineering with a year in Industry","Electronic & Electrical Engineering","2+2 (1+2)","University of Sheffield"]
["BEng (Hons)","Electronics and Renewable Energy Systems","Electronic & Electrical Engineering","2+2 (1+2)","University of Leeds"]
["BEng (Hons)","Industrial Electronics and Control Engineering","Electronic & Electrical Engineering","4+0 (3+0)","Liverpool John Moores University"]
["BEng (Hons)","Industrial Electronics and Control Engineering (with Management)","Electronic & Electrical Engineering","4+0","Liverpool John Moores University"]
["BEng (Hons)","Materials Science and Engineering","Electronic & Electrical Engineering","2+2 (1+2)","University of Sheffield"]
["BSc (Hons)","Music Multimedia and Electronics","Electronic & Electrical Engineering","2+2 (1+2)","University of Leeds"]
["BSc (Hons)","Software Engineering","Electronic & Electrical Engineering","2+2 (1+2)","Liverpool John Moores University"]
["BEng (Hons)","System and Control Engineering","Electronic & Electrical Engineering","2+2 (1+2)","University of Sheffield"]
[null,null,null,null,"Back to Menu"]
[]
["Department of Mechanical Engineering"]
[]
["Degree Qualification","Degree Subject","Diploma Subject","Pathway","Degree Awarded by"]
["BEng (Hons)","Aeronautical Engineering","Mechanical Engineering","2+2 (1+2)","University of Salford"]
["BEng (Hons)","Automotive Engineering","Mechanical Engineering","2+2 (1+2)","Manchester Metropolitan University"]
["BEng (Hons)","Automotive Engineering","Mechanical Engineering","2+2 (1+2)","University of Leeds"]
["BEng (Hons)","Aeronautical and Aerospace Engineering","Mechanical Engineering","2+2 (1+2)","University of Leeds"]
["BEng (Hons)","Aircraft Engineering with Pilot Studies","Mechanical Engineering","2+2 (1+2)","University of Salford"]
["BSc (Hons)","Aviation Technology with Pilot Studies","Mechanical Engineering","2+2 (1+2)","University of Salford"]
["BEng (Hons)","Manufacturing Systems Engineering","Mechanical Engineering","4+0 (3+0)","Liverpool John Moores University"]
["BEng (Hons)","Manufacturing Systems Engineering (with Management)","Mechanical Engineering","4+0","Liverpool John Moores University"]
["BEng (Hons)","Mechanical and Marine Engineering","Mechanical Engineering","2+2 (1+2)","Liverpool John Moores University"]
["BEng (Hons)","Mechanical Engineering","Mechanical Engineering","2+2 (1+2)","Liverpool John Moores University"]
["BEng (Hons)","Mechanical Engineering","Mechanical Engineering","2+2 (1+2)","Manchester Metropolitan University"]
["BEng (Hons)","Mechanical Engineering","Mechanical Engineering","2+2 (1+2)","Sheffield Hallam University"]
["BEng (Hons)","Mechanical Engineering","Mechanical Engineering","2+2 (1+2)","University of Bradford"]
["BEng (Hons)","Mechanical Engineering","Mechanical Engineering","2+2 (1+2)","University of Huddersfield"]
["BEng (Hons)","Mechanical Engineering","Mechanical Engineering","2+2 (1+2)","University of Leeds"]
["BEng (Hons)","Mechanical Engineering","Mechanical Engineering","2+2 (1+2)","University of Salford"]
["BEng (Hons)","Mechanical Engineering","Mechanical Engineering","2+2 (1+2)","University of Sheffield"]
["BEng (Hons)","Mechanical Engineering (including a work placement)","Mechanical Engineering","2+2 (1+2)","University of Bradford"]
["BEng (Hons)","Mechanical Engineering with Management","Mechanical Engineering","2+2 (1+2)","Liverpool John Moores University"]
["BEng (Hons)","Mechanical  and Manufacturing Engineering","Mechanical Engineering","2+2 (1+2)","Liverpool John Moores University"]
["BEng (Hons)","Mechatronic and Robotic Engineering","Mechanical Engineering","2+2 (1+2)","University of Sheffield"]
["BEng (Hons)","Medical Engineering","Mechanical Engineering","2+2 (1+2)","University of Leeds"]
["BSc (Hons)","Product Design Engineering","Mechanical Engineering","2+2 (1+2)","Liverpool John Moores University"]
["BSc (Hons)","Quantity Surveying","Mechanical Engineering","2+2 (1+2)","Liverpool John Moores University"]
["BSc (Hons)","Real Estate Management and Business","Mechanical Engineering","2+2 (1+2)","Liverpool John Moores University"]
[null,null,null,null,"Back to Menu"]
[]
["Notes:"]
["All degree programmes are subject to change"]
[]
[]
[]
["CHOICE OF PROGRAMMES BY PATHWAY"]
[]
["SCHOOL OF BUSINESS AND ECONOMICS"]
[]
["4+0 Pathway (4 years at SBC Shanghai)"]
[]
["Degree Qualification","Degree Subject","Diploma Subject","Pathway","Degree Awarded by"]
["BA (Hons)","Events Management","Events Management","4+0 (3+0)","University of Huddersfield"]
[null,null,null,null,"Back to Menu"]
[]
["3+1 Pathway (3 years at SBC Shanghai plus 1 Year at UK university)"]
[]
["Degree Qualification","Degree Subject","Diploma Subject","Pathway","Degree Awarded by"]
["BA (Hons)","Events Management","Events Management","3+1 (2+1)","University of Huddersfield"]
[null,null,null,null,"Back to Menu"]
[]
["2+2 Pathway (2 years at SBC Shanghai plus 2 Years at UK university)"]
[]
["Degree Qualification","Degree Subject","Diploma Subject","Pathway","Degree Awarded by"]
["BA (Hons)","Accountancy ","Business Management","2+2 (1+2)","University of Huddersfield"]
["BA (Hons)","Accountancy and Finance (ACCA, CIMA and ICEAW accredited)","Business Management","2+2 (1+2)","University of Huddersfield"]
["BA (Hons)","Accountancy with Financial Services","Business Management","2+2 (1+2)","University of Huddersfield"]
["BSc (Hons)","Accounting and Finance","Business Management","2+2 (1+2)","Liverpool John Moores University"]
["BSc (Hons)","Accounting and Finance","Business Management","2+2 (1+2)","University of Bradford"]
["BSc (Hons)","Accounting and Finance (including work placement)","Business Management","2+2 (1+2)","University of Bradford"]
["BSc (Hons)","Accounting and Finance","Business Management","2+2 (1+2)","University of Salford"]
["BSc (Hons)","Accounting and Finance with Professional Experience Year","Business Management","2+2 (1+2)","University of Salford"]
["BA (Hons)","Accounting and Financial Management","Business Management","2+2 (1+2)","University of Sheffield"]
["BA (Hons)","Accounting and Financial Management and Mathematics","Business Management","2+2 (1+2)","University of Sheffield"]
["BSc (Hons)","Air Transport and Logistics Management","Business Management","2+2 (1+2)","University of Huddersfield"]
["BA (Hons)","Business & Management","Business Management","2+2 (1+2)","Leeds Beckett University"]
["BSc (Hons)","Business and Economics","Business Management","2+2 (1+2)","University of Salford"]
["BSc (Hons)","Business and Economics with Professional Experience Year","Business Management","2+2 (1+2)","University of Salford"]
["BA (Hons)","Business and Financial Management","Business Management","2+2 (1+2)","Sheffield Hallam University"]
["BSc (Hons)","Business and Financial Management","Business Management","2+2 (1+2)","University of Salford"]
["BSc (Hons)","Business and Financial Management with Professional Experience Year","Business Management","2+2 (1+2)","University of Salford"]
["BA (Hons)","Business and Human Resource Management","Business Management","2+2 (1+2)","Sheffield Hallam University"]
["BSc (Hons)","Business and Management","Business Management","2+2 (1+2)","University of Salford"]
["BSc (Hons)","Business and Management with Professional Experience Year","Business Management","2+2 (1+2)","University of Salford"]
["BSc (Hons)","Business and Management Studies","Business Management","2+2 (1+2)","University of Bradford"]
["BSc (Hons)","Business and Management Studies (including work placement)","Business Management","2+2 (1+2)","University of Bradford"]
["BA (Hons)","Business and Marketing","Business Management","2+2 (1+2)","Sheffield Hallam University"]
["BA (Hons)","Business and Public Relations","Business Management","2+2 (1+2)","Liverpool John Moores University"]
["BSc (Hons)","Business and Tourism Management","Business Management","2+2 (1+2)","University of Salford"]
["BSc (Hons)","Business and Tourism Management with Professional Experience Year","Business Management","2+2 (1+2)","University of Salford"]
["BSc (Hons)","Business and Tourism Management","Events Management","2+2 (1+2)","University of Salford"]
["BSc (Hons)","Business and Tourism Management with Professional Experience Year","Events Management","2+2 (1+2)","University of Salford"]
["BSc (Hons)","Business Economics","Business Management","2+2 (1+2)","University of Bradford"]
["BSc (Hons)","Business Economics","Events Management","2+2 (1+2)","University of Bradford"]
["BSc (Hons)","Business Information Technology","Business Management","2+2 (1+2)","University of Salford"]
["BSc (Hons)","Business Information Technology with Professional Experience Year","Business Management","2+2 (1+2)","University of Salford"]
["BA (Hons)","Business Management","Business Management","2+2 (1+2)","Liverpool John Moores University"]
["BA (Hons)","Business Management","Business Management","2+2 (1+2)","Manchester Metropolitan University"]
["BA (Hons)","Business Management (4 years exchange)","Business Management","2+2 (1+2)","Manchester Metropolitan University"]
["BA (Hons)","Business Management (at MMU Cheshire)","Business Management","2+2 (1+2)","Manchester Metropolitan University"]
["BA (Hons)","Business Management (Sandwich)","Business Management","2+2 (1+2)","Manchester Metropolitan University"]
["BA (Hons)","Business Management ","Business Management","2+2 (1+2)","University of Huddersfield"]
["BA (Hons)","Business Management ","Business Management","2+2 (1+2)","University of Sheffield"]
["BA (Hons)","Business Management ","Business Management","2+2 (1+2)","Sheffield Hallam University"]
["BA (Hons)","Business Management and Mathematics","Business Management","2+2 (1+2)","University of Sheffield"]
["BA (Hons)","Business Management with Marketing (at MMU Cheshire)","Business Management","2+2 (1+2)","Manchester Metropolitan University"]
["BSc (Hons)","Business Management with Sport","Business Management","2+2 (1+2)","University of Salford"]
["BSc (Hons)","Business Management with Sport with Professional Experience Year","Business Management","2+2 (1+2)","University of Salford"]
["BA (Hons)","Business Studies","Business Management","2+2 (1+2)","Liverpool John Moores University"]
["BA (Hons)","Business Studies","Business Management","2+2 (1+2)","Sheffield Hallam University"]
["BA (Hons)","Business Studies","Business Management","2+2 (1+2)","University of Huddersfield"]
["BSc (Hons)","Economics","Business Management","2+2 (1+2)","University of Bradford"]
["BSc (Hons)","Economics","Events Management","2+2 (1+2)","University of Bradford"]
["BA (Hons)","Events Management","Business Management","2+2 (1+2)","Manchester Metropolitan University"]
["BA (Hons)","Events Management","Events Management","2+2 (1+2)","Leeds Beckett University"]
["BA (Hons)","Events Management","Events Management","2+2 (1+2)","Liverpool John Moores University"]
["BA (Hons)","Events Management","Events Management","2+2 (1+2)","University of Huddersfield"]
["BA (Hons)","Events Management ","Events Management","2+2 (1+2)","Manchester Metropolitan University"]
["BA (Hons)","Events Management (Sandwich)","Business Management","2+2 (1+2)","Manchester Metropolitan University"]
["BA (Hons)","Events Management  (Sandwich)","Events Management","2+2 (1+2)","Manchester Metropolitan University"]
["BSc (Hons)","Financial Economics","Business Management","2+2 (1+2)","University of Bradford"]
["BSc (Hons)","Financial Economics","Events Management","2+2 (1+2)","University of Bradford"]
["BSc (Hons)","Financial Economics (including work placement)","Business Management","2+2 (1+2)","University of Bradford"]
["BSc (Hons)","Financial Economics (including work placement)","Events Management","2+2 (1+2)","University of Bradford"]
["BSc (Hons)","Hospitality Management","Business Management","2+2 (1+2)","Manchester Metropolitan University"]
["BA (Hons)","Hospitality Management","Events Management","2+2 (1+2)","University of Huddersfield"]
["BSc (Hons)","Hospitality Business Management","Events Management","2+2 (1+2)","Manchester Metropolitan University"]
["BA (Hons)","Human Resource Management","Business Management","2+2 (1+2)","Liverpool John Moores University"]
["BSc (Hons)","Human Resource Management","Business Management","2+2 (1+2)","University of Bradford"]
["BSc (Hons)","Human Resource Management (including work placement)","Business Management","2+2 (1+2)","University of Bradford"]
["BA (Hons)","Human Resource Management","Business Management","2+2 (1+2)","University of Leeds"]
["BSc (Hons)","Human Resource Management","Business Management","2+2 (1+2)","University of Salford"]
["BSc (Hons)","Human Resource Management with Professional Experience Year","Business Management","2+2 (1+2)","University of Salford"]
["BSc (Hons)","International  Business and Management","Business Management","2+2 (1+2)","University of Bradford"]
["BSc (Hons)","International  Business and Management (including work placement)","Business Management","2+2 (1+2)","University of Bradford"]
["BA (Hons)","International Business","Business Management","2+2 (1+2)","Sheffield Hallam University"]
["BA (Hons)","International Business","Business Management","2+2 (1+2)","University of Huddersfield"]
["BSc (Hons)","International Business","Business Management","2+2 (1+2)","University of Leeds"]
["BSc (Hons)","International Business","Business Management","2+2 (1+2)","University of Salford"]
["BSc (Hons)","International Business with Professional Experience Year","Business Management","2+2 (1+2)","University of Salford"]
["BA (Hons)","International Business Management","Business Management","2+2 (1+2)","Manchester Metropolitan University"]
["BA (Hons)","International Business Management (with overseas study)","Business Management","2+2 (1+2)","Manchester Metropolitan University"]
["BA (Hons)","International Business Management (with placement)","Business Management","2+2 (1+2)","Manchester Metropolitan University"]
["BSc (Hons)","International Events Management","Business Management","2+2 (1+2)","University of Salford"]
["BSc (Hons)","International Events Management with Professional Experience Year","Business Management","2+2 (1+2)","University of Salford"]
["BSc (Hons)","International Events Management","Events Management","2+2 (1+2)","University of Salford"]
["BSc (Hons)","International Events Management with Professional Experience Year","Events Management","2+2 (1+2)","University of Salford"]
["BSc (Hons)","International Events Management","Events Management","2+2 (1+2)","Sheffield Hallam University"]
["BSc (Hons)","Management","Business Management","2+2 (1+2)","University of Leeds"]
["BA (Hons)","Management and the Human Resource","Business Management","2+2 (1+2)","University of Leeds"]
["BSc (Hons)","Management with Marketing","Business Management","2+2 (1+2)","University of Leeds"]
["BA (Hons)","Marketing","Business Management","2+2 (1+2)","Liverpool John Moores University"]
["BSc (Hons)","Marketing","Business Management","2+2 (1+2)","University of Bradford"]
["BSc (Hons)","Marketing","Business Management","2+2 (1+2)","University of Salford"]
["BSc (Hons)","Marketing (including work placement)","Business Management","2+2 (1+2)","University of Bradford"]
["BSc (Hons)","Marketing with Professional Experience Year","Business Management","2+2 (1+2)","University of Salford"]
["BSc (Hons)","Supply Chain Management","Business Management","2+2 (1+2)","University of Huddersfield"]
["BSc (Hons)","Sport Business Management","Events Management","2+2 (1+2)","Sheffield Hallam University"]
["BSc (Hons)","Sport Events Management","Events Management","2+2 (1+2)","Leeds Beckett University"]
["BA (Hons)","Tourism Management","Business Management","2+2 (1+2)","Manchester Metropolitan University"]
["BSc (Hons)","Transport and Logistics Management","Business Management","2+2 (1+2)","University of Huddersfield"]
["BA (Hons)","Tourism Management","Events Management","2+2 (1+2)","Manchester Metropolitan University"]
["BA (Hons)","Travel and Tourism Management","Events Management","2+2 (1+2)","University of Huddersfield"]
[null,null,null,null,"Back to Menu"]
[]
["2+1+1 Pathway (2 years at SBC Shanghai plus 1 Year at UK university plus Final Year at SBC Shanghai)"]
[]
["Degree Qualification","Degree Subject","Diploma Subject","Pathway","Degree Awarded by"]
["BA (Hons)","Business Management","Business Management","2+1+1 (1+1+1)","Sheffield Hallam University"]
["BA (Hons)","Events Management","Events Management","2+1+1 (1+1+1)","University of Huddersfield"]
[null,null,null,null,"Back to Menu"]
[]
[]
["SCHOOL OF SCIENCE AND ENGINEERING"]
[]
["4+0 Pathway (4 years at SBC Shanghai)"]
[]
["Degree Qualification","Degree Subject","Diploma Subject","Pathway","Degree Awarded by"]
["BEng (Hons)","Industrial Electronics and Control Engineering","Electronic & Electrical Engineering","4+0 (3+0)","Liverpool John Moores University"]
["BEng (Hons)","Industrial Electronics and Control Engineering (with Management)","Electronic & Electrical Engineering","4+0","Liverpool John Moores University"]
["BEng (Hons)","Manufacturing Systems Engineering","Mechanical Engineering","4+0 (3+0)","Liverpool John Moores University"]
["BEng (Hons)","Manufacturing Systems Engineering (with Management)","Mechanical Engineering","4+0","Liverpool John Moores University"]
[null,null,null,null,"Back to Menu"]
[]
["2+2 Pathway (2 years at SBC Shanghai plus 2 Years at UK university)"]
[]
["Degree Qualification","Degree Subject","Diploma Subject","Pathway","Degree Awarded by"]
["BEng (Hons)","Aeronautical and Aerospace Engineering","Mechanical Engineering","2+2 (1+2)","University of Leeds"]
["BEng (Hons)","Aeronautical Engineering","Mechanical Engineering","2+2 (1+2)","University of Salford"]
["BEng (Hons)","Aircraft Engineering with Pilot Studies","Mechanical Engineering","2+2 (1+2)","University of Salford"]
["BEng (Hons)","Automotive Engineering","Mechanical Engineering","2+2 (1+2)","Manchester Metropolitan University"]
["BEng (Hons)","Automotive Engineering","Mechanical Engineering","2+2 (1+2)","University of Leeds"]
["BSc (Hons)","Aviation Technology with Pilot Studies","Mechanical Engineering","2+2 (1+2)","University of Salford"]
["BSc (Hons)","Computer Studies","Electronic & Electrical Engineering","2+2 (1+2)","Liverpool John Moores University"]
["BSc (Hons)","Computer Technology","Electronic & Electrical Engineering","2+2 (1+2)","Liverpool John Moores University"]
["BEng (Hons)","Digital Electronics with a year in Industry","Electronic & Electrical Engineering","2+2 (1+2)","University of Sheffield"]
["BEng (Hons)","Electrical Engineering","Electronic & Electrical Engineering","2+2 (1+2)","University of Sheffield"]
["BEng (Hons)","Electronic Engineering","Electronic & Electrical Engineering","2+2 (1+2)","Sheffield Hallam University"]
["BEng (Hons)","Electronic Engineering","Electronic & Electrical Engineering","2+2 (1+2)","University of Huddersfield"]
["BEng (Hons)","Electronic Engineering","Electronic & Electrical Engineering","2+2 (1+2)","University of Leeds"]
["BEng (Hons)","Electronic Engineering","Electronic & Electrical Engineering","2+2 (1+2)","University of Sheffield"]
["BEng (Hons)","Electronic Engineering with a year in Industry","Electronic & Electrical Engineering","2+2 (1+2)","University of Sheffield"]
["BEng (Hons)","Electrical Engineering","Electronic & Electrical Engineering","2+2 (1+2)","University of Sheffield"]
["BEng (Hons)","Electrical Engineering with a year in Industry","Electronic & Electrical Engineering","2+2 (1+2)","University of Sheffield"]
["BEng (Hons)","Electrical & Electronic Engineering","Electronic & Electrical Engineering","2+2 (1+2)","University of Bradford"]
["BEng (Hons)","Electrical & Electronic Engineering (including work placement)","Electronic & Electrical Engineering","2+2 (1+2)","University of Bradford"]
["BEng (Hons)","Electrical and Electronic Engineering","Electronic & Electrical Engineering","2+2 (1+2)","Liverpool John Moores University"]
["BEng (Hons)","Electrical and Electronic Engineering","Electronic & Electrical Engineering","2+2 (1+2)","Manchester Metropolitan University"]
["BEng (Hons)","Electrical and Electronic Engineering","Electronic & Electrical Engineering","2+2 (1+2)","Sheffield Hallam University"]
["BEng (Hons)","Electrical and Electronic Engineering","Electronic & Electrical Engineering","2+2 (1+2)","University of Sheffield"]
["BEng (Hons)","Electronic and Communications Engineering","Electronic & Electrical Engineering","2+2 (1+2)","University of Huddersfield"]
["BEng (Hons)","Electronic and Communications Engineering","Electronic & Electrical Engineering","2+2 (1+2)","University of Leeds"]
["BEng (Hons)","Electronic and Communications Engineering","Electronic & Electrical Engineering","2+2 (1+2)","University of Sheffield"]
["BEng (Hons)","Electronic and Communications Engineering with a year in Industry","Electronic & Electrical Engineering","2+2 (1+2)","University of Sheffield"]
["BEng (Hons)","Electronic and Electrical Engineering","Electronic & Electrical Engineering","2+2 (1+2)","University of Huddersfield"]
["BEng (Hons)","Electronic and Electrical Engineering","Electronic & Electrical Engineering","2+2 (1+2)","University of Leeds"]
["BEng (Hons)","Electronics and Renewable Energy Systems","Electronic & Electrical Engineering","2+2 (1+2)","University of Leeds"]
["BEng (Hons)","Materials Science and Engineering","Electronic & Electrical Engineering","2+2 (1+2)","Liverpool John Moores University"]
["BEng (Hons)","Mechanical and Marine Engineering","Mechanical Engineering","2+2 (1+2)","Liverpool John Moores University"]
["BEng (Hons)","Mechanical Engineering","Mechanical Engineering","2+2 (1+2)","Liverpool John Moores University"]
["BEng (Hons)","Mechanical Engineering","Mechanical Engineering","2+2 (1+2)","Manchester Metropolitan University"]
["BEng (Hons)","Mechanical Engineering","Mechanical Engineering","2+2 (1+2)","Sheffield Hallam University"]
["BEng (Hons)","Mechanical Engineering","Mechanical Engineering","2+2 (1+2)","University of Bradford"]
["BEng (Hons)","Mechanical Engineering","Mechanical Engineering","2+2 (1+2)","University of Huddersfield"]
["BEng (Hons)","Mechanical Engineering","Mechanical Engineering","2+2 (1+2)","University of Leeds"]
["BEng (Hons)","Mechanical Engineering","Mechanical Engineering","2+2 (1+2)","University of Salford"]
["BEng (Hons)","Mechanical Engineering","Mechanical Engineering","2+2 (1+2)","University of Sheffield"]
["BEng (Hons)","Mechanical Engineering (including a work placement)","Mechanical Engineering","2+2 (1+2)","University of Bradford"]
["BEng (Hons)","Mechanical Engineering with Management","Mechanical Engineering","2+2 (1+2)","Liverpool John Moores University"]
["BEng (Hons)","Mechanical and Manufacturing Engineering","Mechanical Engineering","2+2 (1+2)","Liverpool John Moores University"]
["BEng (Hons)","Mechatronic and Robotic Engineering","Mechanical Engineering","2+2 (1+2)","University of Sheffield"]
["BEng (Hons)","Medical Engineering","Mechanical Engineering","2+2 (1+2)","University of Leeds"]
["BSc (Hons)","Music Multimedia and Electronics","Electronic & Electrical Engineering","2+2 (1+2)","University of Leeds"]
["BSc (Hons)","Product Design Engineering","Mechanical Engineering","2+2 (1+2)","Liverpool John Moores University"]
["BSc (Hons)","Quantitiy Surveying","Mechanical Engineering","2+2 (1+2)","Liverpool John Moores University"]
["BSc (Hons)","Real Estate Management and Business","Mechanical Engineering","2+2 (1+2)","Liverpool John Moores University"]
["BSc (Hons)","Software Engineering","Electronic & Electrical Engineering","2+2 (1+2)","Liverpool John Moores University"]
["BEng (Hons)","Systems and Control Engineering","Electronic & Electrical Engineering","2+2 (1+2)","University of Sheffield"]
[null,null,null,null,"Back to Menu"]
[]
[]
[]
["CHOICE OF PROGRAMMES BY UNIVERSITY"]
[]
["SCHOOL OF BUSINESS AND ECONOMICS"]
[]
["University of Bradford"]
[]
["Degree Qualification","Degree Subject","Diploma Subject","Pathway","Degree Awarded by"]
["BSc (Hons)","Accounting and Finance","Business Management","2+2 (1+2)","University of Bradford"]
["BSc (Hons)","Accounting and Finance (including work placement)","Business Management","2+2 (1+2)","University of Bradford"]
["BSc (Hons)","Business and Management Studies","Business Management","2+2 (1+2)","University of Bradford"]
["BSc (Hons)","Business and Management Studies (including work placement)","Business Management","2+2 (1+2)","University of Bradford"]
["BSc (Hons)","Business Economics","Business Management","2+2 (1+2)","University of Bradford"]
["BSc (Hons)","Business Economics","Events Management","2+2 (1+2)","University of Bradford"]
["BSc (Hons)","Economics","Business Management","2+2 (1+2)","University of Bradford"]
["BSc (Hons)","Economics","Events Management","2+2 (1+2)","University of Bradford"]
["BSc (Hons)","Financial Economics","Business Management","2+2 (1+2)","University of Bradford"]
["BSc (Hons)","Financial Economics","Events Management","2+2 (1+2)","University of Bradford"]
["BSc (Hons)","Financial Economics (including work placement)","Business Management","2+2 (1+2)","University of Bradford"]
["BSc (Hons)","Financial Economics (including work placement)","Events Management","2+2 (1+2)","University of Bradford"]
["BSc (Hons)","Human Resource Management","Business Management","2+2 (1+2)","University of Bradford"]
["BSc (Hons)","Human Resource Management (including work placement)","Business Management","2+2 (1+2)","University of Bradford"]
["BSc (Hons)","International  Business and Management","Business Management","2+2 (1+2)","University of Bradford"]
["BSc (Hons)","International Business and Management (including work placement)","Business Management","2+2 (1+2)","University of Bradford"]
["BSc (Hons)","Marketing","Business Management","2+2 (1+2)","University of Bradford"]
["BSc (Hons)","Marketing (including work placement)","Business Management","2+2 (1+2)","University of Bradford"]
[null,null,null,null,"Back to Menu"]
[]
["University of Huddersfield"]
[]
["Degree Qualification","Degree Subject","Diploma Subject","Pathway","Degree Awarded by"]
["BA (Hons)","Accountancy ","Business Management","2+2 (1+2)","University of Huddersfield"]
["BA (Hons)","Accountancy and Finance (ACCA, CIMA and ICEAW accredited)","Business Management","2+2 (1+2)","University of Huddersfield"]
["BA (Hons)","Accountancy with Financial Services","Business Management","2+2 (1+2)","University of Huddersfield"]
["BSc (Hons)","Air Transport and Logistics Management","Business Management","2+2 (1+2)","University of Huddersfield"]
["BA (Hons)","Business Management ","Business Management","2+2 (1+2)","University of Huddersfield"]
["BA (Hons)","Business Studies","Business Management","2+2 (1+2)","University of Huddersfield"]
["BA (Hons)","Events Management","Events Management","2+1+1 (1+1+1)","University of Huddersfield"]
["BA (Hons)","Events Management","Events Management","2+2 (1+2)","University of Huddersfield"]
["BA (Hons)","Events Management","Events Management","3+1 (2+1)","University of Huddersfield"]
["BA (Hons)","Events Management","Events Management","4+0 (3+0)","University of Huddersfield"]
["BA (Hons)","Hospitality Management","Events Management","2+2 (1+2)","University of Huddersfield"]
["BA (Hons)","International Business","Business Management","2+2 (1+2)","University of Huddersfield"]
["BSc (Hons)","Supply Chain Management","Business Management","2+2 (1+2)","University of Huddersfield"]
["BSc (Hons)","Transport and Logistics Management","Business Management","2+2 (1+2)","University of Huddersfield"]
["BA (Hons)","Travel and Tourism Management","Events Management","2+2 (1+2)","University of Huddersfield"]
[null,null,null,null,"Back to Menu"]
[]
["University of Leeds"]
[]
["Degree Qualification","Degree Subject","Diploma Subject","Pathway","Degree Awarded by"]
["BA (Hons)","Human Resource Management","Business Management","2+2 (1+2)","University of Leeds"]
["BSc (Hons)","International Business","Business Management","2+2 (1+2)","University of Leeds"]
["BSc (Hons)","Management","Business Management","2+2 (1+2)","University of Leeds"]
["BA (Hons)","Management and the Human Resource","Business Management","2+2 (1+2)","University of Leeds"]
["BSc (Hons)","Management with Marketing","Business Management","2+2 (1+2)","University of Leeds"]
[null,null,null,null,"Back to Menu"]
[]
["Leeds Beckett University"]
[]
["Degree Qualification","Degree Subject","Diploma Subject","Pathway","Degree Awarded by"]
["BA (Hons)","Business & Management","Business Management","2+2 (1+2)","Leeds Beckett University"]
["BA (Hons)","Events Management","Events Management","2+2 (1+2)","Leeds Beckett University"]
["BSc (Hons)","Sport Events Management","Events Management","2+2 (1+2)","Leeds Beckett University"]
[null,null,null,null,"Back to Menu"]
[]
["Liverpool John Moores University"]
[]
["Degree Qualification","Degree Subject","Diploma Subject","Pathway","Degree Awarded by"]
["BSc (Hons)","Accounting and Finance","Business Management","2+2 (1+2)","Liverpool John Moores University"]
["BA (Hons)","Business and Public Relations","Business Management","2+2 (1+2)","Liverpool John Moores University"]
["BA (Hons)","Business Management","Business Management","2+2 (1+2)","Liverpool John Moores University"]
["BA (Hons)","Business Studies","Business Management","2+2 (1+2)","Liverpool John Moores University"]
["BA (Hons)","Events Management","Events Management","2+2 (1+2)","Liverpool John Moores University"]
["BA (Hons)","Human Resource Management","Business Management","2+2 (1+2)","Liverpool John Moores University"]
["BA (Hons)","Marketing","Business Management","2+2 (1+2)","Liverpool John Moores University"]
[null,null,null,null,"Back to Menu"]
[]
["Manchester Metropolitan University"]
[]
["Degree Qualification","Degree Subject","Diploma Subject","Pathway","Degree Awarded by"]
["BA (Hons)","Business Management","Business Management","2+2 (1+2)","Manchester Metropolitan University"]
["BA (Hons)","Business Management (4 years exchange)","Business Management","2+2 (1+2)","Manchester Metropolitan University"]
["BA (Hons)","Business Management (at MMU Cheshire)","Business Management","2+2 (1+2)","Manchester Metropolitan University"]
["BA (Hons)","Business Management (Sandwich)","Business Management","2+2 (1+2)","Manchester Metropolitan University"]
["BA (Hons)","Business Management and Financial Management (at MMU Cheshire)","Business Management","2+2 (1+2)","Manchester Metropolitan University"]
["BA (Hons)","Business Management with Marketing (at MMU Cheshire)","Business Management","2+2 (1+2)","Manchester Metropolitan University"]
["BA (Hons)","Events Management","Business Management","2+2 (1+2)","Manchester Metropolitan University"]
["BA (Hons)","Events Management ","Events Management","2+2 (1+2)","Manchester Metropolitan University"]
["BA (Hons)","Events Management (Sandwich)","Business Management","2+2 (1+2)","Manchester Metropolitan University"]
["BA (Hons)","Events Management  (Sandwich)","Events Management","2+2 (1+2)","Manchester Metropolitan University"]
["BSc (Hons)","Hospitality Management","Business Management","2+2 (1+2)","Manchester Metropolitan University"]
["BSc (Hons)","Hospitality Business Management","Events Management","2+2 (1+2)","Manchester Metropolitan University"]
["BA (Hons)","International Business Management","Business Management","2+2 (1+2)","Manchester Metropolitan University"]
["BA (Hons)","International Business Management (with overseas study)","Business Management","2+2 (1+2)","Manchester Metropolitan University"]
["BA (Hons)","International Business Management (with placement)","Business Management","2+2 (1+2)","Manchester Metropolitan University"]
["BA (Hons)","Tourism Management","Business Management","2+2 (1+2)","Manchester Metropolitan University"]
["BA (Hons)","Tourism Management","Events Management","2+2 (1+2)","Manchester Metropolitan University"]
[null,null,null,null,"Back to Menu"]
[]
["University of Salford"]
[]
["Degree Qualification","Degree Subject","Diploma Subject","Pathway","Degree Awarded by"]
["BSc (Hons)","Accounting and Finance","Business Management","2+2 (1+2)","University of Salford"]
["BSc (Hons)","Accounting and Finance with Professional Experience Year","Business Management","2+2 (1+2)","University of Salford"]
["BSc (Hons)","Business and Economics","Business Management","2+2 (1+2)","University of Salford"]
["BSc (Hons)","Business and Economics with Professional Experience Year","Business Management","2+2 (1+2)","University of Salford"]
["BSc (Hons)","Business and Financial Management","Business Management","2+2 (1+2)","University of Salford"]
["BSc (Hons)","Business and Financial Management with Professional Experience Year","Business Management","2+2 (1+2)","University of Salford"]
["BSc (Hons)","Business and Management","Business Management","2+2 (1+2)","University of Salford"]
["BSc (Hons)","Business and Management with Professional Experience Year","Business Management","2+2 (1+2)","University of Salford"]
["BSc (Hons)","Business and Tourism Management","Business Management","2+2 (1+2)","University of Salford"]
["BSc (Hons)","Business and Tourism Management","Events Management","2+2 (1+2)","University of Salford"]
["BSc (Hons)","Business and Tourism Management with Professional Experience Year","Business Management","2+2 (1+2)","University of Salford"]
["BSc (Hons)","Business and Tourism Management with Professional Experience Year","Events Management","2+2 (1+2)","University of Salford"]
["BSc (Hons)","Business Information Technology","Business Management","2+2 (1+2)","University of Salford"]
["BSc (Hons)","Business Information Technology with Professional Experience Year","Business Management","2+2 (1+2)","University of Salford"]
["BSc (Hons)","Business Management with Sport","Business Management","2+2 (1+2)","University of Salford"]
["BSc (Hons)","Business Management with Sport with Professional Experience Year","Business Management","2+2 (1+2)","University of Salford"]
["BSc (Hons)","Human Resource Management","Business Management","2+2 (1+2)","University of Salford"]
["BSc (Hons)","Human Resource Management with Professional Experience Year","Business Management","2+2 (1+2)","University of Salford"]
["BSc (Hons)","International Business","Business Management","2+2 (1+2)","University of Salford"]
["BSc (Hons)","International Business with Professional Experience Year","Business Management","2+2 (1+2)","University of Salford"]
["BSc (Hons)","International Events Management","Business Management","2+2 (1+2)","University of Salford"]
["BSc (Hons)","International Events Management","Events Management","2+2 (1+2)","University of Salford"]
["BSc (Hons)","International Events Management with Professional Experience Year","Business Management","2+2 (1+2)","University of Salford"]
["BSc (Hons)","International Events Management with Professional Experience Year","Events Management","2+2 (1+2)","University of Salford"]
["BSc (Hons)","Marketing","Business Management","2+2 (1+2)","University of Salford"]
["BSc (Hons)","Marketing with Professional Experience Year","Business Management","2+2 (1+2)","University of Salford"]
[null,null,null,null,"Back to Menu"]
[]
["University of Sheffield"]
[]
["Degree Qualification","Degree Subject","Diploma Subject","Pathway","Degree Awarded by"]
["BA (Hons)","Accounting and Financial Management","Business Management","2+2 (1+2)","University of Sheffield"]
["BA (Hons)","Accounting and Financial Management and Mathematics","Business Management","2+2 (1+2)","University of Sheffield"]
["BA (Hons)","Business Management ","Business Management","2+2 (1+2)","University of Sheffield"]
["BA (Hons)","Business Management and Mathematics","Business Management","2+2 (1+2)","University of Sheffield"]
[null,null,null,null,"Back to Menu"]
[]
["Sheffield Hallam University"]
[]
["Degree Qualification","Degree Subject","Diploma Subject","Pathway","Degree Awarded by"]
["BA (Hons)","Business and Financial Management","Business Management","2+2 (1+2)","Sheffield Hallam University"]
["BA (Hons)","Business and Human Resource Management","Business Management","2+2 (1+2)","Sheffield Hallam University"]
["BA (Hons)","Business and Marketing","Business Management","2+2 (1+2)","Sheffield Hallam University"]
["BA (Hons)","Business Management","Business Management","2+2 (1+2)","Sheffield Hallam University"]
["BA (Hons)","Business Studies","Business Management","2+2 (1+2)","Sheffield Hallam University"]
["BA (Hons)","International Business","Business Management","2+2 (1+2)","Sheffield Hallam University"]
["BA (Hons)","International Events Management","Events Management","2+2 (1+2)","Sheffield Hallam University"]
["BSc (Hons)","Sport Business Management","Events Management","2+2 (1+2)","Sheffield Hallam University"]
[null,null,null,null,"Back to Menu"]
[]
[]
["SCHOOL OF SCIENCE AND ENGINEERING"]
[]
["University of Bradford"]
[]
["Degree Qualification","Degree Subject","Diploma Subject","Pathway","Degree Awarded by"]
["BEng (Hons)","Electrical & Electronic Engineering","Electronic & Electrical Engineering","2+2 (1+2)","University of Bradford"]
["BEng (Hons)","Electrical & Electronic Engineering (including work placement)","Electronic & Electrical Engineering","2+2 (1+2)","University of Bradford"]
["BEng (Hons)","Mechanical Engineering","Mechanical Engineering","2+2 (1+2)","University of Bradford"]
["BEng (Hons)","Mechanical Engineering (including a work placement)","Mechanical Engineering","2+2 (1+2)","University of Bradford"]
[null,null,null,null,"Back to Menu"]
[]
["University of Huddersfield"]
[]
["Degree Qualification","Degree Subject","Diploma Subject","Pathway","Degree Awarded by"]
["BEng (Hons)","Electronic and Communication Engineering","Electronic & Electrical Engineering","2+2 (1+2)","University of Huddersfield"]
["BEng (Hons) ","Electronic and Electrical Engineering","Electronic & Electrical Engineering","2+2 (1+2)","University of Huddersfield"]
["BEng (Hons)","Electronic Engineering","Electronic & Electrical Engineering","2+2 (1+2)","University of Huddersfield"]
["BEng (Hons)","Mechanical Engineering","Mechanical Engineering","2+2 (1+2)","University of Huddersfield"]
[null,null,null,null,"Back to Menu"]
[]
["University of Leeds"]
[]
["Degree Qualification","Degree Subject","Diploma Subject","Pathway","Degree Awarded by"]
["BEng (Hons)","Aeronautical and Aerospace Engineering","Mechanical Engineering","2+2 (1+2)","University of Leeds"]
["BEng (Hons)","Automotive Engineering","Mechanical Engineering","2+2 (1+2)","University of Leeds"]
["BEng (Hons)","Electronic and Communications Engineering","Electronic & Electrical Engineering","2+2 (1+2)","University of Leeds"]
["BEng (Hons)","Electronic and Electrical Engineering","Electronic & Electrical Engineering","2+2 (1+2)","University of Leeds"]
["BEng (Hons)","Electronic Engineering","Electronic & Electrical Engineering","2+2 (1+2)","University of Leeds"]
["BEng (Hons)","Electronics and Renewable Energy Systems","Electronic & Electrical Engineering","2+2 (1+2)","University of Leeds"]
["BSc (Hons)","Music Multimedia and Electronics","Electronic & Electrical Engineering","2+2 (1+2)","University of Leeds"]
["BEng (Hons)","Mechanical Engineering","Mechanical Engineering","2+2 (1+2)","University of Leeds"]
["BEng (Hons)","Medical Engineering","Mechanical Engineering","2+2 (1+2)","University of Leeds"]
[null,null,null,null,"Back to Menu"]
[]
["Liverpool John Moores University"]
[]
["Degree Qualification","Degree Subject","Diploma Subject","Pathway","Degree Awarded by"]
["BSc (Hons)","Computer Studies","Electronic & Electrical Engineering","2+2 (1+2)","Liverpool John Moores University"]
["BSc (Hons)","Computer Technology","Electronic & Electrical Engineering","2+2 (1+2)","Liverpool John Moores University"]
["BEng (Hons)","Electrical and Electronic Engineering","Electronic & Electrical Engineering","2+2 (1+2)","Liverpool John Moores University"]
["BEng (Hons)","Industrial Electronics and Control Engineering","Electronic & Electrical Engineering","4+0 (3+0)","Liverpool John Moores University"]
["BEng (Hons)","Industrial Electronics and Control Engineering (with Management)","Electronic & Electrical Engineering","4+0","Liverpool John Moores University"]
["BEng (Hons)","Manufacturing Systems Engineering","Mechanical Engineering","4+0 (3+0)","Liverpool John Moores University"]
["BEng (Hons)","Manufacturing Systems Engineering (with Management)","Mechanical Engineering","4+0","Liverpool John Moores University"]
["BEng (Hons)","Mechanical and Marine Engineering","Mechanical Engineering","2+2 (1+2)","Liverpool John Moores University"]
["BEng (Hons)","Mechanical and Manufacturing Engineering","Mechanical Engineering","2+2 (1+2)","Liverpool John Moores University"]
["BEng (Hons)","Mechanical Engineering","Mechanical Engineering","2+2 (1+2)","Liverpool John Moores University"]
["BEng (Hons)","Mechanical Engineering with Management","Mechanical Engineering","2+2 (1+2)","Liverpool John Moores University"]
["BSc (Hons)","Product Design Engineering","Mechanical Engineering","2+2 (1+2)","Liverpool John Moores University"]
["BSc (Hons)","Quantitiy Surverying","Mechanical Engineering","2+2 (1+2)","Liverpool John Moores University"]
["BSc (Hons)","Real Estate Management and Business","Mechanical Engineering","2+2 (1+2)","Liverpool John Moores University"]
["BSc (Hons)","Software Engineering","Electronic & Electrical Engineering","2+2 (1+2)","Liverpool John Moores University"]
[null,null,null,null,"Back to Menu"]
[]
["Manchester Metropolitan University"]
[]
["Degree Qualification","Degree Subject","Diploma Subject","Pathway","Degree Awarded by"]
["BEng (Hons)","Automotive Engineering","Mechanical Engineering","2+2 (1+2)","Manchester Metropolitan University"]
["BEng (Hons)","Mechanical Engineering","Mechanical Engineering","2+2 (1+2)","Manchester Metropolitan University"]
["BEng (Hons)","Electrical and Electronic Engineering","Electronic & Electrical Engineering","2+2 (1+2)","Manchester Metropolitan University"]
[null,null,null,null,"Back to Menu"]
[]
["University of Salford"]
[]
["Degree Qualification","Degree Subject","Diploma Subject","Pathway","Degree Awarded by"]
["BEng (Hons)","Aeronautical Engineering","Mechanical Engineering","2+2 (1+2)","University of Salford"]
["BEng (Hons)","Aircraft Engineering with Pilot Studies","Mechanical Engineering","2+2 (1+2)","University of Salford"]
["BSc (Hons)","Aviation Technology with Pilot Studies","Mechanical Engineering","2+2 (1+2)","University of Salford"]
["BEng (Hons)","Mechanical Engineering","Mechanical Engineering","2+2 (1+2)","University of Salford"]
[null,null,null,null,"Back to Menu"]
[]
["University of Sheffield"]
[]
["Degree Qualification","Degree Subject","Diploma Subject","Pathway","Degree Awarded by"]
["BEng (Hons)","Digital Electronics with a year in Industry","Electronic & Electrical Engineering","2+2 (1+2)","University of Sheffield"]
["BEng (Hons)","Electrical Engineering","Electronic & Electrical Engineering","2+2 (1+2)","University of Sheffield"]
["BEng (Hons)","Electrical Engineering with a year in Industry","Electronic & Electrical Engineering","2+2 (1+2)","University of Sheffield"]
["BEng (Hons)","Electrical and Electronic Engineering","Electronic & Electrical Engineering","2+2 (1+2)","University of Sheffield"]
["BEng (Hons)","Electronic and Communications Engineering","Electronic & Electrical Engineering","2+2 (1+2)","University of Sheffield"]
["BEng (Hons)","Electronic and Communications Engineering with a year in Industry","Electronic & Electrical Engineering","2+2 (1+2)","University of Sheffield"]
["BEng (Hons)","Electronic Engineering","Electronic & Electrical Engineering","2+2 (1+2)","University of Sheffield"]
["BEng (Hons)","Electronic Engineering with a year in Industry","Electronic & Electrical Engineering","2+2 (1+2)","University of Sheffield"]
["BEng (Hons)","Materials Science and Engineering","Electronic & Electrical Engineering","2+2 (1+2)","University of Sheffield"]
["BEng (Hons)","Mechanical Engineering","Mechanical Engineering","2+2 (1+2)","University of Sheffield"]
["BEng (Hons)","Mechatronic and Robotic Engineering","Mechanical Engineering","2+2 (1+2)","University of Sheffield"]
["BEng (Hons)","Systems and Control Engineering ","Mechanical Engineering","2+2 (1+2)","University of Sheffield"]
[null,null,null,null,"Back to Menu"]
[]
["Sheffield Hallam University"]
[]
["Degree Qualification","Degree Subject","Diploma Subject","Pathway","Degree Awarded by"]
["BEng (Hons)","Electrical and Electronic Engineering","Electronic & Electrical Engineering","2+2 (1+2)","Sheffield Hallam University"]
["BEng (Hons)","Electronic Engineering","Electronic & Electrical Engineering","2+2 (1+2)","Sheffield Hallam University"]
["BEng (Hons)","Mechanical Engineering","Mechanical Engineering","2+2 (1+2)","Sheffield Hallam University"]
[null,null,null,null,"Back to Menu"]

{"sheet":"EAP Announcement","index":2,"n_rows":25,"n_cols":13,"rows_kept":25,"cut":false,"hidden":true,"merged":[[4,0,4,15],[6,2,6,8],[6,12,6,14],[7,2,7,8],[7,12,7,14],[8,2,8,8],[8,12,8,14],[9,2,9,8],[13,0,13,14],[14,0,14,14],[17,0,17,14],[20,0,20,14],[22,0,22,14],[24,0,24,14],[0,0,3,15]]}
[]
[]
[]
[]
["EAP Exemption Announcement "]
[]
["Family Name: ",null,{"$f":"'DATA INPUT'!H18","v":"(PLEASE INPUT)"},null,null,null,null,null,null,null,"Nationality:",null,{"$f":"'DATA INPUT'!H28","v":"(PLEASE INPUT)"}]
["Given Name:",null,{"$f":"'DATA INPUT'!H16","v":"(PLEASE INPUT)"}]
["Programme:",null,{"$f":"'DATA INPUT'!H63","v":"(PLEASE SELECT ONE)"},null,null,null,null,null,null,null,"Pathway:",null,{"$f":"'DATA INPUT'!H72","v":"(PLEASE SELECT)"}]
["EAP ",null,{"$f":"OFFER!J22","v":"(PLEASE SELECT)"}]
[]
[]
["Please read the important information below carefully"]
["Please be advised that you must achieve the entry requirements of your target course and university in SBC Year 2 in order to progress to your target course, pathway or university at the end of SBC Year 2.  Entry requirements may be subject to change by the partner universities and the decision of accepting students into respective courses rests entirely with the partner universities. Please also note that if for any reason a student elects not to take SBC’s English for Academic Purposes (EAP) course or does not achieve the required EAP grade, partner universities will require IELTS or TOEFL for the student to be accepted in to their courses. Depending on the preferred university or course of study, students may need an EAP qualification above the minimum outlined in the NCUK guarantee."]
["Some SELT (Secure English Language Test) qualifications are only valid for a limited time (e.g. an IELTS qualification is valid for two years).  Students opting out of EAP are responsible for ensuring that they have a valid English language qualification when applying for university. Therefore, if a SELT is used for entrance requirements, but will expire before the student applies to university, the student should enrol in the NCUK EAP module or take another SELT that will be valid at the time when the student enters the university. Students exempt from EAP are required to complete a Study Skills module to prepare them for study in a UK University."]
[]
["Notes:  "]
["If the exemption is approved, Year 1 students are required to complete a Study Skills module to prepare them for study in a UK university.  20% of the EAP fee will be retained for the Study Skills module, the remaining refund will be calculated proportionally based on the EAP tuition fee by applying the current refund policy of SBC starting from the date that the Exemption Request form was received by Registry.   The EAP textbook fee will not be refunded as this will be required for completion of the Study Skills module."]
[]
[]
["I hereby declare that I fully understand the importance of EAP lessons and I am writing this announcement to confirm that I have made a decision of exemption from EAP lessons; I will accept the consequences of my decision."]
[]
["Signature: _____________________"]
[]
["Date: ______________________"]

{"sheet":"POLICE REGISTRATION","index":3,"n_rows":25,"n_cols":7,"rows_kept":25,"cut":false,"hidden":true,"merged":[[1,0,1,6],[3,0,3,1],[4,0,4,1],[5,0,5,1],[5,5,5,6],[6,0,6,1],[6,5,6,6],[7,5,7,6],[8,5,8,6],[9,0,9,1],[9,2,9,3],[9,5,9,6],[10,0,10,1],[10,2,10,3],[10,5,10,6],[11,0,11,1],[11,2,11,3],[11,5,11,6],[12,2,12,3],[12,5,12,6],[13,2,13,4],[15,2,15,3],[17,1,17,2],[17,3,17,6],[18,0,18,1],[18,2,18,4],[19,0,19,1],[19,2,19,3],[19,5,19,6],[20,0,20,1],[20,2,20,6],[21,2,21,3],[21,5,21,6],[22,1,22,2],[22,5,22,6],[23,5,23,6],[24,1,24,2],[24,4,24,6],[12,0,17,0],[5,3,6,3],[7,0,8,1]]}
[]
["境外人员住宿登记申报表"]
[]
["英文姓        Surname",null,{"$f":"'DATA INPUT'!H18","v":"(PLEASE INPUT)"},"英文名         Given Name",{"$f":"'DATA INPUT'!H16","v":"(PLEASE INPUT)"},"中文姓名 （选填）Name in     Chinese (If Any)"]
["性别               Sex",null,{"$f":"'DATA INPUT'!H24","v":"(PLEASE SELECT)"},"国家和地区      Country or Region",{"$f":"'DATA INPUT'!H30","v":"(PLEASE INPUT)"},"职业       Occupation",{"$f":"'DATA INPUT'!#REF!","v":{"$error":"#REF!"}}]
[" 出生日期        Date of Birth      日(D)/月(M)/年(Y)",null,{"$f":"'DATA INPUT'!H22","v":"(PLEASE INPUT)"},"出入境证件    Passport /Certificate of Idenntification","种类Type"]
["身高           Height",null,null,null,"号码No."]
["停(居)留证件  Visa/Resident Permit",null,"种类       Type",null,"签证(注)机关  Issued by"]
[null,null,"号码        No.",null,"签证(注)有效期 Validity"]
["来华事由       Purpose of       Stay in China",null,null,null,"工作机构    Employer"]
["入境日期         Date of Entry",null,"     日(D)     月(M)     年(Y)",null,"入境口岸    Date of Entry"]
["入住日期        Move-in Date",null,"     日(D)     月(M)     年(Y)",null,"拟离开日期   Date of Departure","     日(D)      月(M)     年(Y)"]
["居住房屋信息         Housing  Information","在沪居住地址 Address in Shanghai",null,null,"本人联系电话  Telephone Number"]
[null,"住房种类      Type of Accommodation","Employer's Dormitory     Employer's House Rented     Private House Rented   Relative or Friend's House          Self-purchased House           Others",null,null,"用途             Use of House","Both Residence and Business           Residence"]
[null,"房主姓名或出租  房屋单位名称    Name of    House-owner   ",null,"法人代表姓名   Name of Legal Representative",null,"出租间数        Number of       Rooms"]
[null,"房主身份证件号码 ID No. Of   House Owner",null,null,null,"房主联系电话    Phone Number     of House-owner"]
[null,"与房主关系    Relationship with House-owner",null,"主居住人(承租人)姓名 Name of Main    Resident(Renter)",null,"与主居住人(承租人)关系        relationship with Main Resident(Renter)"]
[null,"本人在沪其他住址            Other Addresses in Shanghai"]
["车辆信息                          Vehicle Information",null,"Self-purchased     Rented    Employer-owned    Others",null,null,"车辆牌号                     Plate-number     of Vehicle"]
["紧急情况下的联系人   Contact in Emergency",null,null,null,"联系电话    Phone Number"]
["备注                 Remarks "]
[]
[null,"申报人(代办人)签名：",null,null,"填报日期：","  日       月        年"]
[]
[null,"Signature of Applicant(Agent):",null,null,"Date of Filling:        (D)        (M)        (Y)"]

{"sheet":"Form-Fields","index":4,"n_rows":423,"n_cols":16384,"rows_kept":423,"cut":false,"hidden":true,"merged":[],"flags":["row_too_large"]}
[]
["SCHOOL"]
["(PLEASE SELECT)"]
["Business and Communication"]
["Engineering"]
[]
[]
["YES/NO"]
["(PLEASE SELECT)"]
["YES"]
["NO"]
[]
["Title"]
["(PLEASE SELECT)"]
["Mr."]
["Ms."]
["Miss"]
["Mrs."]
[]
["MARITALSTATUS"]
["(PLEASE SELECT)"]
["MARRIED"]
["SINGLE"]
[]
["Male / Female"]
["(PLEASE SELECT)"]
["MALE"]
["FEMALE"]
[]
["SELF/ FAMILY"]
["(PLEASE SELECT)"]
["SELF"]
["FAMILY"]
["EMPLOYER"]
[]
["OVERSEAS / HOME"]
["(PLEASE SELECT)"]
["OVERSEAS"]
["HOME"]
[]
["DEPARTMENT"]
["(PLEASE SELECT ONE)"]
["Business Management"]
["Events Management"]
["Electronic and Electrical Engineering"]
["Mechanical Engineering"]
[]
[]
[]
["ENTRYDATE"]
["(PLEASE SELECT)"]
["September, 2017"]
["September, 2018"]
[]
["FULLTIMEPARTTIME"]
["(PLEASE SELECT)"]
["FULL-TIME"]
["PART-TIME"]
[]
["TUITION FEE"]
["(PLEASE SELECT)"]
[80000]
[64000]
[70000]
[56000]
[]
[]
["Former Studies"]
["(PLEASE SELECT)"]
["SCHOOL (YEAR 11)"]
["SCHOOL (YEAR 12)"]
["SCHOOL (YEAR 13)"]
["DIPLOMA (YEAR 1)"]
["DIPLOMA (YEAR 2)"]
["DIPLOMA GRADUATE"]
["BACHELORS (YEAR 1)"]
["BACHELORS (YEAR 2)"]
["BACHELORS (YEAR 3)"]
["BACHELORS GRADUATE"]
["Other"]
[]
[]
[]
["Target Degree"]
["(PLEASE SELECT)"]
["Bachelors Honours Degree 1+3 Pathway (plus NCUK International Foundation in Business on successful completion of Year 1)"]
["Bachelors Honours Degree 1+3 Pathway (plus NCUK International Foundation in Engineering on successful completion of Year 1)"]
["Bachelors Honours Degree 4+0 Pathway (plus NCUK International Diploma in Electronic and Electrical Engineering on successful completion of Year 2)"]
["Bachelors Honours Degree 3+0 Pathway (plus NCUK International Diploma in Electronic and Electrical Engineering on successful completion of Year 2)"]
["Bachelors Honours Degree 2+2 Pathway (plus NCUK International Diploma in Electronic and Electrical Engineering on successful completion of Year 2)"]
["Bachelors Honours Degree 1+2 Pathway (plus NCUK International Diploma in Electronic and Electrical Engineering on successful completion of Year 2)"]
["Bachelors Honours Degree 4+0 Pathway (plus NCUK International Diploma in Mechanical Engineering on successful completion of Year 2)"]
["Bachelors Honours Degree 3+0 Pathway (plus NCUK International Diploma in Mechanical Engineering on successful completion of Year 2)"]
["Bachelors Honours Degree 2+2 Pathway (plus NCUK International Diploma in Mechanical Engineering on successful completion of Year 2)"]
["Bachelors Honours Degree 1+2 Pathway (plus NCUK International Diploma in Mechanical Engineering on successful completion of Year 2)"]
[{"$cut":{"chars":2162688,"head":""}}]
[{"$cut":{"chars":2162688,"head":""}}]
["Bachelors Honours Degree 2+2 Pathway (plus NCUK International Diploma in Business Management on successful completion of Year 2)"]
["Bachelors Honours Degree 1+2 Pathway (plus NCUK International Diploma in Business Management on successful completion of Year 2)"]
["Bachelors Honours Degree 2+1+1 Pathway (plus NCUK International Diploma in Business Management on successful completion of Year 2)"]
["Bachelors Honours Degree 1+1+1 Pathway (plus NCUK International Diploma in Business Management on successful completion of Year 2)"]
["Bachelors Honours Degree 4+0 Pathway (plus NCUK International Diploma in Events Management on successful completion of Year 2)"]
["Bachelors Honours Degree 3+0 Pathway (plus NCUK International Diploma in Events Management on successful completion of Year 2)"]
["Bachelors Honours Degree 3+1 Pathway (plus NCUK International Diploma in Events Management on successful completion of Year 2)"]
["Bachelors Honours Degree 2+1 Pathway (plus NCUK International Diploma in Events Management on successful completion of Year 2)"]
["Bachelors Honours Degree 2+2 Pathway (plus NCUK International Diploma in Events Management on successful completion of Year 2)"]
["Bachelors Honours Degree 1+2 Pathway (plus NCUK International Diploma in Events Management on successful completion of Year 2)"]
["Bachelors Honours Degree 2+1+1 Pathway (plus NCUK International Diploma in Events Management on successful completion of Year 2)"]
["Bachelors Honours Degree 1+1+1 Pathway (plus NCUK International Diploma in Events Management on successful completion of Year 2)"]
[]
[]
[]
[]
[]
[]
[]
[]
[]
[]
["PATHWAY"]
["(PLEASE SELECT)"]
["1+3 (Foundation)"]
["4+0 (3+0)"]
["3+1 (2+1)"]
["2+1+1 (1+1+1)"]
["2+2 (1+2)"]
[]
["YEAROFENTRY"]
["(PLEASE SELECT)"]
["SBC Year 1 "]
["SBC Year 2 "]
["SBC Year 3 "]
[]
["Pre-Sessional"]
["(PLEASE SELECT)"]
["Not Required"]
["4-Weeks (TBC 2017)"]
[]
["LANGUAGE"]
["(PLEASE SELECT)"]
["NATIVE ENGLISH"]
["IELTS"]
["TOEFL"]
["TOEFL (PAPER BASED)"]
["TOEFL (COMPUTER BASED)"]
["TOEFL IBT"]
["GCSE"]
["O LEVEL"]
["CAMBRIDGE O LEVEL"]
["SBC ENTRANCE EXAMINATION"]
["OTHER"]
[]
["CHINESE"]
["(PLEASE SELECT)"]
["NATIVE CHINESE"]
["GOOD"]
["AVERAGE"]
["NONE"]
["HSK"]
[]
["HSK RESULT"]
["(PLEASE SELECT)"]
["NONE"]
[1]
[2]
[3]
[4]
[5]
[6]
[]
["FREE AND WITH CHINESE"]
["(PLEASE SELECT)"]
["Yes - An optional non-credit Chinese language and culture module with an attendance certificate provided (FREE OF CHARGE except book fees)."]
["No thanks - I do not wish to take part in any Chinese language and culture (basic survival language skills) for life in Shanghai."]
[]
["REFERRAL"]
["(PLEASE SELECT)"]
["Web Search"]
["Web Advert"]
["Education Agent"]
["Education Fair"]
["Newspaper "]
["Magazine"]
["TV"]
["SBC Prospectus/Leaflet/Flier"]
["My School"]
["Family/Friends/Classmates"]
["Other"]
[]
["DATEOBTAINED"]
["(PLEASE SELECT)"]
["N/A"]
["SEP, 2015"]
["OCT, 2015"]
["NOV, 2015"]
["DEC, 2015"]
["JAN, 2016"]
["FEB, 2016"]
["MAR, 2016"]
["APR, 2016"]
["MAY, 2016"]
["JUN, 2016"]
["JUL, 2016"]
["AUG, 2016"]
["SEP, 2016"]
["OCT, 2016"]
["NOV, 2016"]
["DEC, 2016"]
["JAN, 2017"]
["FEB, 2017"]
["MAR, 2017"]
["APR, 2017"]
["MAY, 2017"]
["JUN, 2017"]
["JUL, 2017"]
["AUG, 2017"]
["SEP, 2017"]
[]
["QUALIFICATIONSHELD"]
["(PLEASE SELECT)"]
["GCSE"]
["IGCSE"]
["A Levels"]
["IB (INTERNATIONAL BACCALAUREAT)"]
["SAT"]
["AP"]
["BA"]
["BSc"]
["BEng"]
["HKDSE"]
["SMA"]
["FRENCH BACCALAUREAT"]
["OTHER"]
[]
["OFFERTYPE"]
["(PLEASE SELECT)"]
["Conditional"]
["Unconditional"]
[]
["CONDITIONS"]
["(PLEASE SELECT)"]
["Unconditional Offer - There are no conditions attached to this offer. "]
["Unconditional Offer (4-Week Pre-Sessional) - There are no conditions attached to this offer, however, you are required to arrive at SBC prior to August 13th and attend the 4-Week Pre-Sessional English Programme with 100% attendance. Failure to attend 100% of classes without satisfactory explanation may result in the withdrawal of this offer. "]
["Conditional Offer - You are required to fulfil all of the conditions listed below. Conditional Offer holders, upon receiving the required qualification certificates, should send them to the International Office by the end of August. If SBC is satisfied that the conditions of the Conditional Offer have been met, Registry will issue an Unconditional Offer\n\nThe Conditions of your Offer are:"]
[]
["FEES"]
["(PLEASE SELECT)"]
["Deposit of RMB 5,000 within 4 weeks of the Offer Date"]
["Deposit of RMB 5,000 within 4 weeks of the Offer Date; Remaining Full Fees (Proforma Invoice Attached) by July 30th, 2017"]
[]
["TICK"]
[" √ "]
[" -- "]
[]
["ACCOM"]
["(PLEASE SELECT)"]
["Single Occupancy (Cost: 36,000RMB/per Academic Year)"]
["Shared 2-Bed Room (Cost: 18,000RMB/per Academic Year)"]
["Off Campus Apartment - Single Room (Cost: 48,000RMB/per Year) Arranged by SBC Recommended Agents"]
["Off Campus (Students responsible for own arrangements)"]
[]
["QUALIFICATION"]
["(PLEASE SELECT ONE)"]
["Foundation in Business"]
["Foundation in Engineering"]
["BA (Hons) Accountancy 2+2 (1+2) Pathway [University of Huddersfield] (plus NCUK Diploma in Business Management on successful completion of year 2)"]
["BA (Hons) Accountancy and Finance (ACCA, CIMA and ICEAW accredited) 2+2 (1+2) Pathway [University of Huddersfield] (plus NCUK Diploma in Business Management on successful completion of year 2)"]
["BA (Hons) Accountancy with Financial Services 2+2 (1+2) Pathway [University of Huddersfield] (plus NCUK Diploma in Business Management on successful completion of year 2)"]
["BSc (Hons) Accounting and Finance 2+2 (1+2) Pathway [Liverpool John Moores University] (plus NCUK Diploma in Business Management on successful completion of year 2)"]
["BSc (Hons) Accounting and Finance 2+2 (1+2) Pathway [University of Bradford] (plus NCUK Diploma in Business Management on successful completion of year 2)"]
["BSc (Hons) Accounting and Finance (including work placement) 2+2 (1+2) Pathway [University of Bradford] (plus NCUK Diploma in Business Management on successful completion of year 2)"]
["BSc (Hons) Accounting and Finance 2+2 (1+2) Pathway [University of Salford] (plus NCUK Diploma in Business Management on successful completion of year 2)"]
["BSc (Hons) Accounting and Finance with Professional Experience Year 2+2  (1+2) Pathway [University of Salford] (plus NCUK Diploma in Business Management on successful completion of year 2)"]
["BA (Hons) Accounting and Financial Management 2+2 (1+2) Pathway [University of Sheffield] (plus NCUK Diploma in Business Management on successful completion of year 2)"]
["BA (Hons) Accounting and Financial Management and Mathematics 2+2 (1+2) Pathway [University of Sheffield] (plus NCUK Diploma in Business Management on successful completion of year 2)"]
["BEng (Hons) Aeronautical and Aerospace Engineering 2+2 (1+2) Pathway [University of Leeds] (plus NCUK Diploma in Mechanical Engineering on successful completion of year 2)"]
["BEng (Hons) Aeronautical Engineering 2+2 (1+2) Pathway [University of Salford] (plus NCUK Diploma in Mechanical Engineering on successful completion of year 2)"]
["BSc (Hons) Air Transport and Logistics Management 2+2 (1+2) Pathway [University of Huddersfield] (plus NCUK Diploma in Business Management on successful completion of year 2)"]
["BEng (Hons) Aircraft Engineering with Pilot Studies 2+2 (1+2) Pathway [University of Salford] (plus NCUK Diploma in Mechanical Engineering on successful completion of year 2)"]
["BEng (Hons) Automotive Engineering 2+2 (1+2) Pathway [Manchester Metropolitan University] (plus NCUK Diploma in Mechanical Engineering on successful completion of year 2)"]
["BEng (Hons) Automotive Engineering 2+2 (1+2) Pathway [University of Leeds] (plus NCUK Diploma in Mechanical Engineering on successful completion of year 2)"]
["BSc (Hons) Aviation Technology with Pilot Studies 2+2 (1+2) Pathway [University of Salford] (plus NCUK Diploma in Mechanical Engineering on successful completion of year 2)"]
["BA (Hons) Business & Management 2+2 (1+2) Pathway [Leeds Beckett University] (plus NCUK Diploma in Business Management on successful completion of year 2)"]
["BSc (Hons) Business and Economics 2+2 (1+2) Pathway [University of Salford] (plus NCUK Diploma in Business Management on successful completion of year 2)"]
["BSc (Hons) Business and Economics with Professional Experience Year 2+2 (1+2) Pathway [University of Salford] (plus NCUK Diploma in Business Management on successful completion of year 2)"]
["BA (Hons) Business and Financial Management 2+2 (1+2) Pathway [Sheffield Hallam University] (plus NCUK Diploma in Business Management on successful completion of year 2)"]
["BSc (Hons) Business and Financial Management 2+2 (1+2) Pathway [University of Salford] (plus NCUK Diploma in Business Management on successful completion of year 2)"]
["BSc (Hons) Business and Financial Management with Professional Experience Year 2+2 (1+2) Pathway [University of Salford] (plus NCUK Diploma in Business Management on successful completion of year 2)"]
["BA (Hons) Business and Human Resource Management 2+2 (1+2) Pathway [Sheffield Hallam University] (plus NCUK Diploma in Business Management on successful completion of year 2)"]
["BSc (Hons) Business and Management 2+2 (1+2) Pathway [University of Salford] (plus NCUK Diploma in Business Management on successful completion of year 2)"]
["BSc (Hons) Business and Management with Professional Experience Year 2+2 (1+2) Pathway [University of Salford] (plus NCUK Diploma in Business Management on successful completion of year 2)"]
["BSc (Hons) Business and Management Studies 2+2 (1+2) Pathway [University of Bradford] (plus NCUK Diploma in Business Management on successful completion of year 2)"]
["BSc (Hons) Business and Management Studies (including work placement) 2+2 (1+2) Pathway [University of Bradford] (plus NCUK Diploma in Business Management on successful completion of year 2)"]
["BA (Hons) Business and Marketing 2+2 (1+2) Pathway [Sheffield Hallam University] (plus NCUK Diploma in Business Management on successful completion of year 2)"]
["BA (Hons) Business and Public Relations 2+2 (1+2) Pathway [Liverpool John Moores University] (plus NCUK Diploma in Business Management on successful completion of year 2)"]
["BSc (Hons) Business and Tourism Management 2+2 (1+2) Pathway [University of Salford] (plus NCUK Diploma in Business Management on successful completion of year 2)"]
["BSc (Hons) Business and Tourism Management with Professional Experience Year 2+2 (1+2) Pathway [University of Salford] (plus NCUK Diploma in Business Management on successful completion of year 2)"]
["BSc (Hons) Business and Tourism Management 2+2 (1+2) Pathway [University of Salford] (plus NCUK Diploma in Events Management on successful completion of year 2)"]
["BSc (Hons) Business and Tourism Management  with Professional Experience Year 2+2 (1+2) Pathway [University of Salford] (plus NCUK Diploma in Events Management on successful completion of year 2)"]
["BSc (Hons) Business Economics 2+2 (1+2) Pathway [University of Bradford] (plus NCUK Diploma in Business Management on successful completion of year 2)"]
["BSc (Hons) Business Economics 2+2 (1+2) Pathway [University of Bradford] (plus NCUK Diploma in Events Management on successful completion of year 2)"]
["BSc (Hons) Business Information Technology 2+2 (1+2) Pathway [University of Salford] (plus NCUK Diploma in Business Management on successful completion of year 2)"]
["BSc (Hons) Business Information Technology with Professional Experience 2+2 (1+2) Pathway [University of Salford] (plus NCUK Diploma in Business Management on successful completion of year 2)"]
["BA (Hons) Business Management 4+0 (3+0) Pathway [Sheffield Hallam University] (plus NCUK Diploma in Business Management on successful completion of year 2)"]
["BA (Hons) Business Management 2+1+1 (1+1+1) Pathway [Sheffield Hallam University] (plus NCUK Diploma in Business Management on successful completion of year 2)"]
["BA (Hons) Business Management 2+2 (1+2) Pathway [Sheffield Hallam University] (plus NCUK Diploma in Business Management on successful completion of year 2)"]
["BA (Hons) Business Management 2+2 (1+2) Pathway [Liverpool John Moores University] (plus NCUK Diploma in Business Management on successful completion of year 2)"]
["BA (Hons) Business Management 2+2 (1+2) Pathway [Manchester Metropolitan University] (plus NCUK Diploma in Business Management on successful completion of year 2)"]
["BA (Hons) Business Management (4 years exchange) 2+2 (1+2) Pathway [Manchester Metropolitan University] (plus NCUK Diploma in Business Management on successful completion of year 2)"]
["BA (Hons) Business Management (at MMU Cheshire) 2+2 (1+2) Pathway [Manchester Metropolitan University] (plus NCUK Diploma in Business Management on successful completion of year 2)"]
["BA (Hons) Business Management (Sandwich) 2+2 (1+2) Pathway [Manchester Metropolitan University] (plus NCUK Diploma in Business Management on successful completion of year 2)"]
["BA (Hons) Business Management 2+2 (1+2) Pathway [University of Huddersfield] (plus NCUK Diploma in Business Management on successful completion of year 2)"]
["BA (Hons) Business Management 2+2 (1+2) Pathway [University of Sheffield] (plus NCUK Diploma in Business Management on successful completion of year 2)"]
["BA (Hons) Business Management and Mathematics 2+2 (1+2) Pathway [University of Sheffield] (plus NCUK Diploma in Business Management on successful completion of year 2)"]
["BA (Hons) Business Management with Marketing (at MMU Cheshire) 2+2 (1+2) Pathway [Manchester Metropolitan University] (plus NCUK Diploma in Business Management on successful completion of year 2)"]
["BSc (Hons) Business Management with Sport 2+2 (1+2) Pathway [University of Salford] (plus NCUK Diploma in Business Management on successful completion of year 2)"]
["BSc (Hons) Business Management with Sport with Professional Experience Year 2+2 (1+2) Pathway [University of Salford] (plus NCUK Diploma in Business Management on successful completion of year 2)"]
["BA (Hons) Business Studies 2+2 (1+2) Pathway [Liverpool John Moores University] (plus NCUK Diploma in Business Management on successful completion of year 2)"]
["BA (Hons) Business Studies 2+2 (1+2) Pathway [Sheffield Hallam University] (plus NCUK Diploma in Business Management on successful completion of year 2)"]
["BA (Hons) Business Studies 2+2 (1+2) Pathway [University of Huddersfield] (plus NCUK Diploma in Business Management on successful completion of year 2)"]
["BSc (Hons) Computer Studies 2+2 (1+2) Pathway [Liverpool John Moores University] (plus NCUK Diploma in Electronic & Electrical Engineering on successful completion of year 2)"]
["BSc (Hons) Computer Technology 2+2 (1+2) Pathway [Liverpool John Moores University] (plus NCUK Diploma in Electronic & Electrical Engineering on successful completion of year 2)"]
["BEng(Hons) Digital Electronics Engineering (including work placement) 2+2 (1+2) Pathway [University of Sheffield] (plus NCUK Diploma in Electronic & Electrical Engineering on successful completion of year 2)"]
["BSc (Hons) Economics 2+2 (1+2) Pathway [University of Bradford] (plus NCUK Diploma in Business Management on successful completion of year 2)"]
["BSc (Hons) Economics 2+2 (1+2) Pathway [University of Bradford] (plus NCUK Diploma in Events Management on successful completion of year 2)"]
["BEng (Hons) Electrical & Electronic Engineering 2+2 (1+2) Pathway [University of Bradford] (plus NCUK Diploma in Electronic & Electrical Engineering on successful completion of year 2)"]
["BEng (Hons) Electrical & Electronic Engineering (including work placement) 2+2 (1+2) Pathway [University of Bradford] (plus NCUK Diploma in Electronic & Electrical Engineering on successful completion of year 2)"]
["BEng (Hons) Electrical and Electronic Engineering 2+2 (1+2) Pathway [Liverpool John Moores University] (plus NCUK Diploma in Electronic & Electrical Engineering on successful completion of year 2)"]
["BEng (Hons) Electrical and Electronic Engineering 2+2 (1+2) Pathway [Manchester Metropolitan University] (plus NCUK Diploma in Electronic & Electrical Engineering on successful completion of year 2)"]
["BEng (Hons) Electrical and Electronic Engineering 2+2 (1+2) Pathway [Sheffield Hallam University] (plus NCUK Diploma in Electronic & Electrical Engineering on successful completion of year 2)"]
["BEng (Hons) Electrical and Electronic Engineering 2+2 (1+2) Pathway [University of Sheffield ] (plus NCUK Diploma in Electronic & Electrical Engineering on successful completion of year 2)"]
["BEng (Hons) Electrical Engineering 2+2 (1+2) Pathway [University of Sheffield] (plus NCUK Diploma in Electronic & Electrical Engineering on successful completion of year 2)"]
["BEng (Hons) Electrical Engineering with a year in Industry 2+2 (1+2) Pathway [University of Sheffield] (plus NCUK Diploma in Electronic & Electrical Engineering on successful completion of year 2)"]
["BEng (Hons) Electronic and Communication Engineering 2+2 (1+2) Pathway [University of Huddersfield] (plus NCUK Diploma in Electronic & Electrical Engineering on successful completion of year 2)"]
["BEng (Hons) Electronic and Communications Engineering 2+2 (1+2) Pathway [University of Leeds] (plus NCUK Diploma in Electronic & Electrical Engineering on successful completion of year 2)"]
["BEng (Hons) Electronic and Communications Engineering 2+2 (1+2) Pathway [University of Sheffield] (plus NCUK Diploma in Electronic & Electrical Engineering on successful completion of year 2)"]
["BEng (Hons) Electronic and Communications Engineering with a year in Industry 2+2 (1+2) Pathway [University of Sheffield] (plus NCUK Diploma in Electronic & Electrical Engineering on successful completion of year 2)"]
["BEng (Hons) Electronic and Electrical Engineering 2+2 (1+2) Pathway [University of Huddersfield] (plus NCUK Diploma in Electronic & Electrical Engineering on successful completion of year 2)"]
["BEng (Hons) Electronic and Electrical Engineering 2+2 (1+2) Pathway [University of Leeds] (plus NCUK Diploma in Electronic & Electrical Engineering on successful completion of year 2)"]
["BEng (Hons) Electronic Engineering 2+2 (1+2) Pathway [Sheffield Hallam University] (plus NCUK Diploma in Electronic & Electrical Engineering on successful completion of year 2)"]
["BEng (Hons) Electronic Engineering 2+2 (1+2) Pathway [University of Huddersfield] (plus NCUK Diploma in Electronic & Electrical Engineering on successful completion of year 2)"]
["BEng (Hons) Electronic Engineering 2+2 (1+2) Pathway [University of Leeds] (plus NCUK Diploma in Electronic & Electrical Engineering on successful completion of year 2)"]
["BEng (Hons) Electronic Engineering 2+2 (1+2) Pathway [University of Sheffield] (plus NCUK Diploma in Electronic & Electrical Engineering on successful completion of year 2)"]
["BEng (Hons) Electronic Engineering with a year in Industry 2+2 (1+2) Pathway [University of Sheffield] (plus NCUK Diploma in Electronic & Electrical Engineering on successful completion of year 2)"]
["BEng (Hons) Electronics and Renewable Energy Systems 2+2 (1+2) Pathway [University of Leeds] (plus NCUK Diploma in Electronic & Electrical Engineering on successful completion of year 2)"]
["BA (Hons) Events Management 2+2 (1+2) Pathway [Manchester Metropolitan University] (plus NCUK Diploma in Business Management on successful completion of year 2)"]
["BA (Hons) Events Management (Sandwich) 2+2 (1+2) Pathway [Manchester Metropolitan University] (plus NCUK Diploma in Business Management on successful completion of year 2)"]
["BA (Hons) Events Management 2+2 (1+2) Pathway [Leeds Beckett University] (plus NCUK Diploma in Events Management on successful completion of year 2)"]
["BA (Hons) Events Management 2+2 (1+2) Pathway [Liverpool John Moores University] (plus NCUK Diploma in Events Management on successful completion of year 2)"]
["BSc (Hons) Events Management 2+2 (1+2) Pathway [Sheffield Hallam University] (plus NCUK Diploma in Events Management on successful completion of year 2)"]
["BA (Hons) Events Management 3+1 (2+1) Pathway [University of Huddersfield] (plus NCUK Diploma in Events Management on successful completion of year 2)"]
["BA (Hons) Events Management 2+2 (1+2) Pathway [University of Huddersfield] (plus NCUK Diploma in Events Management on successful completion of year 2)"]
["BA (Hons) Events Management 2+1+1 (1+1+1) Pathway [University of Huddersfield] (plus NCUK Diploma in Events Management on successful completion of year 2)"]
["BA (Hons) Events Management 4+0 (3+0) Pathway [University of Huddersfield] (plus NCUK Diploma in Events Management on successful completion of year 2)"]
["BA (Hons) Events Management 2+2 (1+2) Pathway [Manchester Metropolitan University] (plus NCUK Diploma in Events Management on successful completion of year 2)"]
["BSc (Hons) Financial Economics 2+2 (1+2) Pathway [University of Bradford] (plus NCUK Diploma in Business Management on successful completion of year 2)"]
["BSc (Hons) Financial Economics 2+2 (1+2) Pathway [University of Bradford] (plus NCUK Diploma in Events Management on successful completion of year 2)"]
["BSc (Hons) Financial Economics (including work placement) 2+2 (1+2) Pathway [University of Bradford] (plus NCUK Diploma in Business Management on successful completion of year 2)"]
["BSc (Hons) Financial Economics (including work placement) 2+2 (1+2) Pathway [University of Bradford] (plus NCUK Diploma in Events Management on successful completion of year 2)"]
["BSc (Hons) Hospitality Management 2+2 (1+2) Pathway [Manchester Metropolitan University] (plus NCUK Diploma in Business Management on successful completion of year 2)"]
["BSc (Hons) Hospitality Business Management 2+2 (1+2) Pathway [Manchester Metropolitan University] (plus NCUK Diploma in Events Management on successful completion of year 2)"]
["BA (Hons) Hospitality Management 2+2 (1+2) Pathway [University of Huddersfield] (plus NCUK Diploma in Events Management on successful completion of year 2)"]
["BA (Hons) Human Resource Management 2+2 (1+2) Pathway [Liverpool John Moores University] (plus NCUK Diploma in Business Management on successful completion of year 2)"]
["BSc (Hons) Human Resource Management 2+2 (1+2) Pathway [University of Bradford] (plus NCUK Diploma in Business Management on successful completion of year 2)"]
["BSc (Hons) Human Resource Management (including work placement) Year 2+2 (1+2) Pathway [University of Bradford] (plus NCUK Diploma in Business Management on successful completion of year 2)"]
["BA (Hons) Human Resource Management 2+2 (1+2) Pathway [University of Leeds] (plus NCUK Diploma in Business Management on successful completion of year 2)"]
["BSc (Hons) Human Resource Management 2+2 (1+2) Pathway [University of Salford] (plus NCUK Diploma in Business Management on successful completion of year 2)"]
["BSc (Hons) Human Resource Management with Professional Experience Year 2+2 (1+2) Pathway [University of Salford] (plus NCUK Diploma in Business Management on successful completion of year 2)"]
["BEng (Hons) Industrial Electronics and Control Engineering 4+0 (3+0) Pathway [Liverpool John Moores University] (plus NCUK Diploma in Electronic & Electrical Engineering on successful completion of year 2)"]
["BEng (Hons) Industrial Electronics and Control Engineering (with Management) 4+0 Pathway [Liverpool John Moores University] (plus NCUK Diploma in Electronic & Electrical Engineering on successful completion of year 2)"]
["BSc (Hons) International Business and Management 2+2 (1+2) Pathway [University of Bradford] (plus NCUK Diploma in Business Management on successful completion of year 2)"]
["BSc (Hons) International Business and Management (including work placement) 2+2 (1+2) Pathway [University of Bradford] (plus NCUK Diploma in Business Management on successful completion of year 2)"]
["BA (Hons) International Business 2+2 (1+2) Pathway [Sheffield Hallam University] (plus NCUK Diploma in Business Management on successful completion of year 2)"]
["BA (Hons) International Business 2+2 (1+2) Pathway [University of Huddersfield] (plus NCUK Diploma in Business Management on successful completion of year 2)"]
["BSc (Hons) International Business 2+2 (1+2) Pathway [University of Leeds] (plus NCUK Diploma in Business Management on successful completion of year 2)"]
["BSc (Hons) International Business 2+2 (1+2) Pathway [University of Salford] (plus NCUK Diploma in Business Management on successful completion of year 2)"]
["BSc (Hons) International Business with Professional Experience Year 2+2 (1+2) Pathway [University of Salford] (plus NCUK Diploma in Business Management on successful completion of year 2)"]
["BA (Hons) International Business Management 2+2 (1+2) Pathway [Manchester Metropolitan University] (plus NCUK Diploma in Business Management on successful completion of year 2)"]
["BA (Hons) International Business Management (with overseas study) 2+2 (1+2) Pathway [Manchester Metropolitan University] (plus NCUK Diploma in Business Management on successful completion of year 2)"]
["BA (Hons) International Business Management (with placement) 2+2 (1+2) Pathway [Manchester Metropolitan University] (plus NCUK Diploma in Business Management on successful completion of year 2)"]
["BSc (Hons) International Events Management 2+2 (1+2) Pathway [University of Salford] (plus NCUK Diploma in Business Management on successful completion of year 2)"]
["BSc (Hons) International Events Management with Professional Experience Year 2+2 (1+2) Pathway [University of Salford] (plus NCUK Diploma in Business Management on successful completion of year 2)"]
["BSc (Hons) International Events Management 2+2 (1+2) Pathway [University of Salford] (plus NCUK Diploma in Events Management on successful completion of year 2)"]
["BSc (Hons) International Events Management with Professional Experience Year 2+2 (1+2) Pathway [University of Salford] (plus NCUK Diploma in Events Management on successful completion of year 2)"]
["BSc (Hons) International Events Management 2+2 (1+2) Pathway [Sheffield Hallam University] (plus NCUK Diploma in Events Management on successful completion of year 2)"]
["BSc (Hons) Management 2+2 (1+2) Pathway [University of Leeds] (plus NCUK Diploma in Business Management on successful completion of year 2)"]
["BA (Hons) Management and the Human Resource 2+2 (1+2) Pathway [University of Leeds] (plus NCUK Diploma in Business Management on successful completion of year 2)"]
["BSc (Hons) Management with Marketing 2+2 (1+2) Pathway [University of Leeds] (plus NCUK Diploma in Business Management on successful completion of year 2)"]
["BEng (Hons) Manufacturing Systems Engineering 4+0 (3+0) Pathway [Liverpool John Moores University] (plus NCUK Diploma in Mechanical Engineering on successful completion of year 2)"]
["BEng (Hons) Manufacturing Systems Engineering (with Management) 4+0 Pathway [Liverpool John Moores University] (plus NCUK Diploma in Mechanical Engineering on successful completion of year 2)"]
["BA (Hons) Marketing 2+2 (1+2) Pathway [Liverpool John Moores University] (plus NCUK Diploma in Business Management on successful completion of year 2)"]
["BSc (Hons) Marketing 2+2 (1+2) Pathway [University of Bradford] (plus NCUK Diploma in Business Management on successful completion of year 2)"]
["BSc (Hons) Marketing 2+2 (1+2) Pathway [University of Salford] (plus NCUK Diploma in Business Management on successful completion of year 2)"]
["BSc (Hons) Marketing (including work placement) 2+2 (1+2) Pathway [University of Bradford] (plus NCUK Diploma in Business Management on successful completion of year 2)"]
["BEng (Hons) Materials Science and Engineering 2+2 (1+2) Pathway [University of Sheffield] (plus NCUK Diploma in Electronic & Electrical Engineering on successful completion of year 2)"]
["BEng (Hons) Mechanical and Manufacturing Engineering 2+2 (1+2) Pathway [Liverpool John Moores University] (plus NCUK Diploma in Mechanical Engineering on successful completion of year 2)"]
["BEng (Hons) Mechanical and Marine Engineering 2+2 (1+2) Pathway [Liverpool John Moores University] (plus NCUK Diploma in Mechanical Engineering on successful completion of year 2)"]
["BEng (Hons) Mechanical Engineering 2+2 (1+2) Pathway [Liverpool John Moores University] (plus NCUK Diploma in Mechanical Engineering on successful completion of year 2)"]
["BEng (Hons) Mechanical Engineering 2+2 (1+2) Pathway [Manchester Metropolitan University] (plus NCUK Diploma in Mechanical Engineering on successful completion of year 2)"]
["BEng (Hons) Mechanical Engineering 2+2 (1+2) Pathway [Sheffield Hallam University] (plus NCUK Diploma in Mechanical Engineering on successful completion of year 2)"]
["BEng (Hons) Mechanical Engineering 2+2 (1+2) Pathway [University of Bradford] (plus NCUK Diploma in Mechanical Engineering on successful completion of year 2)"]
["BEng (Hons) Mechanical Engineering (including a work placement) 2+2 (1+2) Pathway [University of Bradford] (plus NCUK Diploma in Mechanical Engineering on successful completion of year 2)"]
["BEng (Hons) Mechanical Engineering 2+2 (1+2) Pathway [University of Huddersfield] (plus NCUK Diploma in Mechanical Engineering on successful completion of year 2)"]
["BEng (Hons) Mechanical Engineering 2+2 (1+2) Pathway [University of Leeds] (plus NCUK Diploma in Mechanical Engineering on successful completion of year 2)"]
["BEng (Hons) Mechanical Engineering 2+2 (1+2) Pathway [University of Salford] (plus NCUK Diploma in Mechanical Engineering on successful completion of year 2)"]
["BEng (Hons) Mechanical Engineering 2+2 (1+2) Pathway [University of Sheffield] (plus NCUK Diploma in Mechanical Engineering on successful completion of year 2)"]
["BEng (Hons) Mechanical Engineering with Management 2+2 (1+2) Pathway [Liverpool John Moores University] (plus NCUK Diploma in Mechanical Engineering on successful completion of year 2)"]
["BEng (Hons) Mechatronic and Robotic Engineering 2+2 (1+2) Pathway [University of Sheffield] (plus NCUK Diploma in Mechanical Engineering on successful completion of year 2)"]
["BEng (Hons) Medical Engineering 2+2 (1+2) Pathway [University of Leeds] (plus NCUK Diploma in Mechanical Engineering on successful completion of year 2)"]
["BSc (Hons) Music Multimedia and Electronics 2+2 (1+2) Pathway [University of Leeds] (plus NCUK Diploma in Electronic & Electrical Engineering on successful completion of year 2)"]
["BSc (Hons) Product Design Engineering 2+2 (1+2) Pathway [Liverpool John Moores University] (plus NCUK Diploma in Mechanical Engineering on successful completion of year 2)"]
["BSc (Hons) Quantity Surveying 2+2 (1+2) Pathway [Liverpool John Moores University] (plus NCUK Diploma in Mechanical Engineering on successful completion of year 2)"]
["BSc (Hons) Real Estate Management and Business 2+2 (1+2) Pathway [Liverpool John Moores University] (plus NCUK Diploma in Mechanical Engineering on successful completion of year 2)"]
["BSc (Hons) Software Engineering 2+2 (1+2) Pathway [Liverpool John Moores University] (plus NCUK Diploma in Electronic & Electrical Engineering on successful completion of year 2)"]
["BSc (Hons) Sport Business Management 2+2 (1+2) Pathway [Sheffield Hallam University] (plus NCUK Diploma in Events Management on successful completion of year 2)"]
["BSc (Hons) Supply Chain Management 2+2 (1+2) Pathway [University of Huddersfield] (plus NCUK Diploma in Business Management on successful completion of year 2)"]
["BSc (Hons) Sport Events Management 2+2 (1+2) Pathway [Leeds Beckett University] (plus NCUK Diploma in Events Management on successful completion of year 2)"]
["BEng (Hons) System and Control Engineering 2+2 (1+2) Pathway [University of Sheffield] (plus NCUK Diploma in Electronic & Electrical Engineering on successful completion of year 2)"]
["BA (Hons) Tourism Management 2+2 (1+2) Pathway [Manchester Metropolitan University] (plus NCUK Diploma in Business Management on successful completion of year 2)"]
["BA (Hons) Tourism Management 2+2 (1+2) Pathway [Manchester Metropolitan University] (plus NCUK Diploma in Events Management on successful completion of year 2)"]
["BSc (Hons) Transport and Logistics Management 2+2 (1+2) Pathway [University of Huddersfield] (plus NCUK Diploma in Business Management on successful completion of year 2)"]
["BA (Hons) Travel and Tourism Management 2+2 (1+2) Pathway [University of Huddersfield] (plus NCUK Diploma in Events Management on successful completion of year 2)"]
["(The End)"]

{"sheet":"DATA ROW","index":5,"n_rows":2,"n_cols":29,"rows_kept":2,"cut":false,"hidden":true,"merged":[]}
["Family Name","Given Name","Country","Nationality","M/F","DOB","Passport #","ID #","How Did They Find Us?","Sales Start Date","Current/ Previous School","Target School","Target Division","Target Pathway","Target Course","Entry Year","Entry Date","English Test Type","English Test Score","Academic Qualifications","Academic Score","Address","Postcode","Mobile Phone","Land Phone","E-mail","Parent/Guardian","Parent/Guardian Phone","Parent/Guardian Email"]
[{"$f":"'DATA INPUT'!H18","v":"(PLEASE INPUT)"},{"$f":"'DATA INPUT'!H16","v":"(PLEASE INPUT)"},{"$f":"'DATA INPUT'!H26","v":"(PLEASE INPUT)"},{"$f":"'DATA INPUT'!H28","v":"(PLEASE INPUT)"},{"$f":"'DATA INPUT'!H24","v":"(PLEASE SELECT)"},{"$f":"'DATA INPUT'!H22","v":"(PLEASE INPUT)"},{"$f":"'DATA INPUT'!H42","v":"(PLEASE INPUT)"},{"$f":"'DATA INPUT'!H44","v":"(PLEASE INPUT)"},{"$f":"'DATA INPUT'!H144","v":"(PLEASE SELECT)"},{"$f":"'DATA INPUT'!H147","v":0},{"$f":"'DATA INPUT'!H109","v":"(PLEASE INPUT)"},{"$f":"'DATA INPUT'!H60","v":"(PLEASE SELECT)"},{"$f":"'DATA INPUT'!H63","v":"(PLEASE SELECT ONE)"},{"$f":"'DATA INPUT'!H72","v":"(PLEASE SELECT)"},{"$f":"'DATA INPUT'!H69","v":"(PLEASE SELECT ONE)"},{"$f":"'DATA INPUT'!H75","v":"(PLEASE SELECT)"},{"$f":"'DATA INPUT'!H66","v":"(PLEASE SELECT)"},{"$f":"'DATA INPUT'!H88","v":"(PLEASE SELECT)"},{"$f":"'DATA INPUT'!H90","v":"(PLEASE INPUT)"},{"$f":"'DATA INPUT'!H120","v":"(PLEASE SELECT)"},{"$f":"'DATA INPUT'!H117","v":"(PLEASE INPUT)"},{"$f":"'DATA INPUT'!H32","v":"(PLEASE INPUT)"},{"$f":"'DATA INPUT'!H34","v":"(PLEASE INPUT)"},{"$f":"'DATA INPUT'!H36","v":"(PLEASE INPUT)"},null,{"$f":"'DATA INPUT'!H38","v":"(PLEASE INPUT)"},{"$f":"'DATA INPUT'!H46","v":"(PLEASE INPUT)"},{"$f":"'DATA INPUT'!H48","v":"(PLEASE INPUT)"},{"$f":"'DATA INPUT'!H52","v":"(PLEASE INPUT)"}]

{"sheet":"SBC APP","index":6,"n_rows":77,"n_cols":28,"rows_kept":77,"cut":false,"hidden":true,"merged":[[0,1,0,34],[2,0,2,25],[2,27,2,34],[11,8,11,17],[13,8,13,34],[14,8,14,34],[16,8,16,15],[16,25,16,34],[17,8,17,16],[17,25,17,34],[28,25,28,34],[30,25,30,34],[32,25,32,34],[34,25,34,34],[37,26,37,34],[38,26,38,34],[40,0,40,34],[41,0,41,35],[47,0,47,35],[49,0,49,35],[51,0,51,35],[57,0,57,35],[59,0,59,35],[62,0,62,35],[76,0,76,34],[54,0,55,35],[52,1,53,34]]}
[null,"International Recruitment 国际招生\nT: +86 (0)21 6431 2086  F: +86 (0)21 6474 1397\ninternational@sbc-usst.edu.cn"]
[]
["2017/18\nUndergraduate Application Form\n本科入学申请表\n\n1) Please type clearly in block letters. Tick boxes where appropriate.\n请务必认真填写表格，并在适当处打勾选择。\n2) Items with asterisk (*) are only required for applicants from Mainland China.\n中国大陆以外学生无需填写带星号项目。\n",null,null,null,null,null,null,null,null,null,null,null,null,null,null,null,null,null,null,null,null,null,null,null,null,null,null,"Photo\n贴照片处\n"]
[]
["I     Personal Details 个人信息"]
[]
["1. Basic Information 基本信息"]
[]
["Gender 性别:         ",null,null,null,null,null,null,null,{"$f":"IF('DATA INPUT'!H24=\"MALE\",\"X\",\" \")","v":" "}," Male男",null,null,null,null,null,null,null,null,{"$f":"IF('DATA INPUT'!H24=\"FEMALE\",\"X\",\" \")","v":" "}," Female女  "]
[]
["Family Name姓:",null,null,null,null,null,null,null,{"$f":"'DATA INPUT'!H18","v":"(PLEASE INPUT)"},null,null,null,null,null,null,null,null,null,"Given Name名:",null,null,null,null,{"$f":"'DATA INPUT'!H16","v":"(PLEASE INPUT)"}]
["Date of Birth出生日期:",null,null,null,null,null,null,null,{"$f":"'DATA INPUT'!H22","v":"(PLEASE INPUT)"},null,null,null,null,null,null,null,null,null,"Nationality国籍:",null,null,null,null,{"$f":"'DATA INPUT'!H28","v":"(PLEASE INPUT)"}]
["Address for Correspondence联系地址: "]
[null,null,null,null,null,null,null,null,{"$f":"'DATA INPUT'!H32","v":"(PLEASE INPUT)"}]
["Postcode邮编:",null,null,null,null,null,null,null,{"$f":"'DATA INPUT'!H34","v":"(PLEASE INPUT)"}]
["E-mail电子邮箱:",null,null,null,null,null,null,null,{"$f":"'DATA INPUT'!H38","v":"(PLEASE INPUT)"}]
["Tel固定电话:",null,null,null,null,null,null,null,{"$f":"'DATA INPUT'!#REF!","v":{"$error":"#REF!"}},null,null,null,null,null,null,null,null,"Mobile手机:",null,null,null,null,null,null,null,{"$f":"'DATA INPUT'!H36","v":"(PLEASE INPUT)"}]
["Passport No.护照号码:",null,null,null,null,null,null,null,{"$f":"'DATA INPUT'!H42","v":"(PLEASE INPUT)"},null,null,null,null,null,null,null,null,"ID Number身份证号码",null,null,null,null,null,null,null,{"$f":"'DATA INPUT'!H44","v":"(PLEASE INPUT)"}]
[]
["2. Details of High School Education 高中教育信息"]
[]
["School Name学校名称:",null,null,null,null,null,null,null,{"$f":"'DATA INPUT'!H109","v":"(PLEASE INPUT)"}]
[null,null,null,null,null,null,null,null,{"$f":"'DATA INPUT'!H111","v":"(PLEASE INPUT)"}]
[]
["Stream文理分类*:",null,null,null,null,null,null,null,null," Liberal Arts文科  ",null,null,null,null,null,null,null," Science理科 "]
[]
["3. English Proficiency 英语水平"]
[]
["Is English your first language?* 英语是你的母语么？",null,null,null,null,null,null,null,null,null,null,null,null,null,null,null,null,null,null,null,null,null,null,null,null,{"$f":"'DATA INPUT'!H82","v":"(PLEASE SELECT)"}]
[]
["Is English the language of instruction for school?* 你的学位是用英语授课吗？",null,null,null,null,null,null,null,null,null,null,null,null,null,null,null,null,null,null,null,null,null,null,null,null,{"$f":"'DATA INPUT'!H85","v":"(PLEASE SELECT)"}]
[]
["Test Type (IELTS/TOEFL/TOEFL IBT/NATIVE ENGLISH / (雅思/托福/新托福)",null,null,null,null,null,null,null,null,null,null,null,null,null,null,null,null,null,null,null,null,null,null,null,null,{"$f":"'DATA INPUT'!H88","v":"(PLEASE SELECT)"}]
[]
["Score obtained 取得的分数*  (If not taken yet, please enter \"FUTURE DATE:\")",null,null,null,null,null,null,null,null,null,null,null,null,null,null,null,null,null,null,null,null,null,null,null,null,{"$f":"'DATA INPUT'!H90","v":"(PLEASE INPUT)"}]
[]
["4. Contact Details of Parent/Guardian 家长/监护人联系方式"]
["Name姓名:",null,null,null,{"$f":"'DATA INPUT'!H46","v":"(PLEASE INPUT)"},null,null,null,null,null,null,null,null,null,null,"Relation to Applicant与申请人关系:",null,null,null,null,null,null,null,null,null,null,{"$f":"'DATA INPUT'!#REF!","v":{"$error":"#REF!"}}]
["Email邮箱：",null,null,null,{"$f":"'DATA INPUT'!H52","v":"(PLEASE INPUT)"},null,null,null,null,null,null,null,null,null,null,"Mobile Phone Number手机号码:",null,null,null,null,null,null,null,null,null,null,{"$f":"'DATA INPUT'!H48","v":"(PLEASE INPUT)"}]
[]
["II  Courses 申请专业方向\n1) Only ONE choice is allowed for pathway and course options per application form. \n 每张申请表中，路径与专业方向只能各选择一项。\n2) Overseas applicants (incl. applicants from Hong Kong, Macau and Taiwan) with a high standard of English and  academic qualifications equivalent to SBC Year 1 (Foundation Year) may be considered for direct entry into SBC Year 2 on a case by case basis. 对于英语语言能力和相应专业水准已达到与SBC一年级（即基础学年）要求相当的海外申请者（包括港、澳、台学生）， SBC也许会按照个人具体情况，考虑其直接进入SBC二年级学习。\n"]
["Course Options 专业方向"]
[null,"International Students Only 入学年级（只限国际学生）"]
[null,"Applying for Entry into SBC Year 1",null,null,null,null,null,null,null,null,null,null,null,null,{"$f":"IF('DATA INPUT'!H75=\"SBC Year 1 \",\"X\",\" \")","v":" "}]
[]
[null,"Applying for Entry into SBC Year 2",null,null,null,null,null,null,null,null,null,null,null,null,{"$f":"IF('DATA INPUT'!H75=\"SBC Year 2 \",\"X\",\" \")","v":" "}]
[]
["School "]
[null,{"$f":"'DATA INPUT'!H60","v":"(PLEASE SELECT)"}]
["Division"]
[null,{"$f":"'DATA INPUT'!H63","v":"(PLEASE SELECT ONE)"}]
["Target Degree"]
[null,{"$f":"'DATA INPUT'!H69","v":"(PLEASE SELECT ONE)"}]
[]
[]
[]
[]
["III  Personal Statement 个人陈述\nPlease submit in 300 words or more in English:\n• Describe your personal background, educational history, work experience (if applicable) and interests.\n• Explain your reasons for choosing SBC and the degree subject.\n• What are your future aspirations?\n个人陈述要求: \n• 全英文，300字以上，请另附纸张（打印稿）\n• 对自己的认识和将来的计划，如想学习什么专业以及心目中理想的职业\n• 有何理想，打算采取怎样的步骤来实现\n• 为什么希望进入中英国际学院，将会怎样度过在中英国际学院的学习"]
[]
["Declaration 申请人声明\nI declare that the information provided in this application and the supporting documentation is true and complete. I understand that the Sino-British College reserves the right to vary or reserve any decision regarding admission or enrollment made on the basis of incorrect information.\n我声明所有填写在此申请表中的信息及提供的相关材料和文件皆为属实。如被发现有不真实的信息或文件，上海理工大学中英国际学院将有权对此作出相应的处理。\n\nSignature of Applicant 申请人签名:           Date 日期:\n\n\nSignature of Parent/Guardian 父母/监护人签名:        Date 日期:\n"]
[]
[]
["How did you hear about The Sino-British College? (Multiple Choice)\n你是如何知道中英国际学院的？（多选）\n"]
[]
[null,{"$f":"IF('DATA INPUT'!H144=\"Web Search\",\"X\",\" \")","v":" "}," Web Search 网络搜索",null,null,null,null,null,null,null,null,null,null,null,null,null,{"$f":"IF('DATA INPUT'!H144=\"Web Advert 网络广告\",\"X\",\" \")","v":" "}," Web Advert 网络广告"]
[]
[null,{"$f":"IF('DATA INPUT'!H144=\"Education Agent\",\"X\",\" \")","v":" "}," Education Agent 教育中介",null,null,null,null,null,null,null,null,null,null,null,null,null,{"$f":"IF('DATA INPUT'!H144=\"Education Fair\",\"X\",\" \")","v":" "}," Education Fair 教育展"]
[]
[null,{"$f":"IF('DATA INPUT'!H144=\"Newspaper\",\"X\",\" \")","v":" "}," Newspaper 报纸",null,null,null,null,null,null,null,null,null,null,null,null,null,{"$f":"IF('DATA INPUT'!H144=\"Magazine\",\"X\",\" \")","v":" "}," Magazine 杂志"]
[]
[null,{"$f":"IF('DATA INPUT'!H144=\"TV\",\"X\",\" \")","v":" "}," TV 电视",null,null,null,null,null,null,null,null,null,null,null,null,null,{"$f":"IF('DATA INPUT'!H144=\"SBC Prospectus/Leaflet/Flier\",\"X\",\" \")","v":" "}," SBC Prospectus/Leaflet/Flier  SBC招生简章/宣传册"]
[]
[null,{"$f":"IF('DATA INPUT'!H144=\"My School 我的学校\",\"X\",\" \")","v":" "}," My School 我的学校",null,null,null,null,null,null,null,null,null,null,null,null,null,{"$f":"IF('DATA INPUT'!H144=\"Family/Friends/Classmates\",\"X\",\" \")","v":" "}," Families/Friends/Classmates 家人/朋友/同学"]
[]
[null,{"$f":"IF('DATA INPUT'!H144=\"Other\",\"X\",\" \")","v":" "}," Other 其他"]
[]
["A. For students from Mainland China中国大陆学生: \n1) 学生须先向上海理工大学中英国际学院提交入学申请表（中文）以及个人陈述（英文）\n2) 通过学院的初步审核后，报名参加考试、确认考试时间并领取考试资料\n3) 学生需持身份证原件及2寸照片两张，参加学院的入学考试（分为英语笔试和英语面试，一天内完成）\n4) 考试后中英国际学院根据学生入学考试成绩以及个人申请材料作出无条件录取有条件录取或者拒绝录取的决定\n5) 学生根据录取通知书办理注册手续并递交相关个人资料\n6) 高考成绩作为学生入学时专业和路径选择的参考\n\nB. For International Students (Including Hong Kong, Macau and Taiwan) 国际生与港、澳、台学生:\n1) Please complete the SBC Undergraduate Application Form\n2) Please prepare the following supporting documents:\na. Original Certificate of School Attendance or Graduation Certificate with seal*\nb. Original Academic Transcripts and School Certificates with seal (if available)*\nc. Two Letters of Recommendation (original) with signature in sealed envelope*\nd. Personal Statement and Resume with your signature (in English)\ne. Non-Native English Speakers require copies of IELTS or original TOEFL test report form (or equivalent)\nf. Copy of Passport ID page and Chinese visa (if applicable)\n3) Please email scanned versions of the Application Form and all Supporting Documents to:\nInternational@sbc-usst.edu.cn \n You will need to bring hard copies of Application Form and all original Supporting Documents and 8 recent \npassport photos when you arrive for registration.\n* NB: With notarised English translation documents if applicable\n"]

{"sheet":"NSE APP","index":7,"n_rows":103,"n_cols":34,"rows_kept":103,"cut":false,"hidden":true,"merged":[[0,0,0,19],[1,0,1,18],[2,0,2,38],[3,0,3,18],[3,21,3,38],[4,0,4,19],[4,21,4,38],[5,0,5,18],[5,21,5,38],[6,0,6,19],[6,21,6,38],[7,0,7,18],[8,0,8,19],[21,11,21,17],[21,18,21,36],[28,31,28,39],[33,0,33,8],[33,9,33,18],[33,19,33,30],[33,32,33,39],[34,1,34,7],[35,1,35,7],[38,33,38,35],[38,36,38,38],[55,11,55,23],[55,28,55,38],[57,0,57,8],[57,9,57,18],[57,19,57,39],[60,1,60,7],[61,1,61,7],[62,1,62,7],[65,1,65,7],[68,1,68,7],[69,1,69,7],[77,0,77,39],[97,0,97,37],[58,10,59,17],[58,20,64,38],[66,20,72,38],[58,1,59,7],[66,10,67,17],[66,1,67,7],[63,10,65,17],[38,10,43,17],[34,33,36,38],[34,20,51,30],[34,10,37,17]]}
["Non-Standard Entry to SBC Undergraduate Programmes"]
["Guidance Notes for completing the Application Form\n"]
["This form is to be used to inform SBC of students applying for SBC Undergraduate programmes and who do not possess qualifications which are in SBC’s standard entry requirement’s list. Standard entry qualifications are available from the SBC’s website.\n\nTo avoid delays, please complete the form in full. \n\nPlease attach the scanned copies of certificates, academic transcripts and syllabuses from previous study. \n\nOnce the form is completed, please fax it with all the attachments to 021-64741397.\n"]
["Section 1: Programme Applied For",null,null,null,null,null,null,null,null,null,null,null,null,null,null,null,null,null,null,null,null,"Section 4: Work Experience"]
["Programme Name The name of the programme that you are applying for including the stream. Example, Accounting and Finance, General Business, Events Management, Electronic and Electrical Engineering, Mechanical Engineering, and Proposed Start Date at SBC (the International Office should be able to provide this to you).\nModules - If appropriate, please indicate the modules that you intend to study. \n\n\n\n",null,null,null,null,null,null,null,null,null,null,null,null,null,null,null,null,null,null,null,null,"You may have worked in an organization where you were required to use some of the skills beneficial in your studies. SBC needs this information to decide whether you are eligible enroll in the programme. Please list the most recent work experience first.\nIf there is not enough space to fill in your work experience, please use a separate sheet and attach it together with the application form."]
["Section 2: Personal Details",null,null,null,null,null,null,null,null,null,null,null,null,null,null,null,null,null,null,null,null,"Section 5: Personal Statement"]
["Please complete all sections taking note of the following:\nSurname/Family Name If you are not familiar with these terms, type your name as it appears in your passport.",null,null,null,null,null,null,null,null,null,null,null,null,null,null,null,null,null,null,null,null,"Please use this section to describe the reasons for your choice and how your choice of programme fit in with your intended academic/career progression."]
["Section 3: Your Education"]
["It is important that you provide this information in full.  Please list the most recent qualification first.\n\nIf you have attended any professional qualifications or training courses, it is important that you include this as it might help you in your application. It is also very important that you state who awarded the certificate, i.e. the name of the institution on the certificate.\n\nEnglish Competency Level This should be a recognized certificate such as IELTS or TOEFL. You need to indicate the grade that you have passed, the Exam ID and the date of the exam.  "]
[]
[]
[]
[]
[]
[null,null,null,null,null,null,null,null,null,null,null,null,null,null,null,null,null,null,null,"Non-Standard Entry Application Form"]
[]
["Please fax completed form to 021-64741397.  "]
["Read enclosed guidance notes before filling in this form. Please type in BLOCK CAPITALS. "]
[]
["1.  Programme Applied For"]
[]
["Proposed Programme:  ",null,null,null,null,null,null,null,null,null,null,{"$f":"'DATA INPUT'!H75","v":"(PLEASE SELECT)"},null,null,null,null,null,null,{"$f":"'DATA INPUT'!H63","v":"(PLEASE SELECT ONE)"}]
[]
["Proposed start date (month-year):",null,null,null,null,null,null,null,null,null,null,{"$f":"'DATA INPUT'!H66","v":"(PLEASE SELECT)"},null,null,null,null,null,null,null,null,null,null,"Modules: "]
["2.  Personal Details"]
[]
["Surname/Family Name:",null,null,null,null,null,null,null,null,{"$f":"'DATA INPUT'!H18","v":"(PLEASE INPUT)"},null,null,null,null,null,null,null,null,null,null,null,null,"First Name(s):",null,null,null,null,null,null,null,null,{"$f":"'DATA INPUT'!H16","v":"(PLEASE INPUT)"}]
[]
["Gender:",null,null,null,null,null,null,null,null,{"$f":"'DATA INPUT'!H24","v":"(PLEASE SELECT)"},null,null,null,null,null,null,null,null,null,null,null,null,"Date of birth (day-month-year): ",null,null,null,null,null,null,null,null,{"$f":"'DATA INPUT'!H22","v":"(PLEASE INPUT)"}]
[]
["Nationality:",null,null,null,null,null,null,null,null,{"$f":"'DATA INPUT'!H28","v":"(PLEASE INPUT)"},null,null,null,null,null,null,null,null,null,null,null,null,"Country of birth: ",null,null,null,null,null,null,null,null,{"$f":"'DATA INPUT'!H26","v":"(PLEASE INPUT)"}]
[]
["3.  Your Education (secondary and post-secondary) including professional qualifications and training courses "]
["Dates (from - to) month/year - month/year ",null,null,null,null,null,null,null,null,"Full name of Institution (include awarding body named on the Certificate) ",null,null,null,null,null,null,null,null,null,"Subject(s) ",null,null,null,null,null,null,null,null,null,null,null,null,"Result (eg BA Hons 2.1) "]
[null,{"$f":"'DATA INPUT'!H113","v":"(PLEASE INPUT)"},null,null,null,null,null,null,null,null,{"$f":"'DATA INPUT'!H109","v":"(PLEASE INPUT)"},null,null,null,null,null,null,null,null,null,{"$f":"'DATA INPUT'!H124","v":"(PLEASE INPUT)"},null,null,null,null,null,null,null,null,null,null,null,null,{"$f":"'DATA INPUT'!H120","v":"(PLEASE SELECT)"}]
[null,{"$f":"'DATA INPUT'!H115","v":"(PLEASE INPUT)"}]
[]
[]
[null,null,null,null,null,null,null,null,null,null,{"$f":"'DATA INPUT'!H111","v":"(PLEASE INPUT)"}]
[]
[]
[]
[]
[]
[]
[]
[]
[]
[]
[]
[]
[]
[]
[]
[]
["English Competency Level",null,null,null,null,null,null,null,null,null,null,{"$f":"'DATA INPUT'!H88","v":"(PLEASE SELECT)"},null,null,null,null,null,null,null,null,null,null,null,null,"Test Score",null,null,null,{"$f":"'DATA INPUT'!H90","v":"(PLEASE INPUT)"}]
["4.  Work Experience "]
["Dates (from - to) month/year - month/year ",null,null,null,null,null,null,null,null,"Job Title",null,null,null,null,null,null,null,null,null,"Duties and Responsibilities"]
[]
[]
[]
[]
[]
[]
[]
[]
[]
[]
[]
[]
[]
[]
[]
[]
[]
["5.  Personal Statement"]
[]
["This is an important section and the admissions staff at SBC will pay particular attention to what you write here. You should explain why you are applying for this programme, what you expect to achieve from it, and how it relates to your academic and career development. (See notes for guidance)."]
[]
[]
[]
[]
[]
[]
[]
[]
[]
[]
[]
[]
[]
[]
[]
[]
[]
[null,null,null,null,null,null,null,null,null,null,null,null,null,null,null,null,null,null,null,null,null,null,null,null,null,null,null,"Continue on a separate sheet, if necessary"]
["Office Use Only "]
["Outcome: Approved □      Conditional Offer □      Reject □\n\nComments:      \n\n \n"]
[]
[]
[]
[]
["Reviewer: ",null,null,null,null,null,null,null,null,null,null,null,null,null,null,null,null,null,null,null,null,null,null,null,"Date: "]

{"sheet":"OFFER","index":8,"n_rows":60,"n_cols":27,"rows_kept":60,"cut":false,"hidden":true,"merged":[[2,26,2,35],[5,0,5,34],[10,22,10,32],[11,22,11,34],[12,8,12,16],[12,22,12,35],[15,9,15,20],[16,9,16,20],[22,40,22,43],[24,9,24,35],[28,1,28,34],[29,1,29,34],[31,1,31,34],[32,1,32,35],[33,1,33,35],[34,1,34,35],[36,1,36,33],[44,1,44,33],[46,1,46,33],[48,1,48,34],[50,1,50,28],[52,1,52,17],[52,18,52,22],[53,1,53,6],[53,7,53,20],[58,1,58,34],[17,9,19,35]]}
[null,null,null,null,null,null,null,null,null,null,null,null,null,null,null,null,"Formal Offer Letter"]
[]
[null,null,null,null,null,null,null,null,null,null,null,null,null,null,null,null,null,null,null,null,null,null,null,null,null,null,{"$f":"TODAY()","v":"2016-12-21"}]
["Dear",null,null,{"$f":"'DATA INPUT'!H14","v":"(PLEASE SELECT)"},null,{"$f":"'DATA INPUT'!H18","v":"(PLEASE INPUT)"}]
[]
["We are pleased to inform you that you are hereby offered a place on our Undergraduate Degree Program, which commences in September 2017. \n\nThe details of your offer are set out below:\n"]
[]
[null,"Offer Holder:"]
[]
[null,"Family Name:",null,null,null,null,null,null,{"$f":"'DATA INPUT'!H18","v":"(PLEASE INPUT)"},null,null,null,null,null,null,null,null,null,"Nationality:",null,null,null,{"$f":"'DATA INPUT'!H28","v":"(PLEASE INPUT)"}]
[null,"Given Name:",null,null,null,null,null,null,{"$f":"'DATA INPUT'!H16","v":"(PLEASE INPUT)"},null,null,null,null,null,null,null,null,null,"Passport:",null,null,null,{"$f":"'DATA INPUT'!H42","v":"(PLEASE INPUT)"}]
[null,"Male/Female:",null,null,null,null,null,null,{"$f":"'DATA INPUT'!H24","v":"(PLEASE SELECT)"},null,null,null,null,null,null,null,null,null,"Phone:",null,null,null,{"$f":"'DATA INPUT'!H36","v":"(PLEASE INPUT)"}]
[null,"Date of Birth:",null,null,null,null,null,null,{"$f":"'DATA INPUT'!H22","v":"(PLEASE INPUT)"},null,null,null,null,null,null,null,null,null,"Email:",null,null,null,{"$f":"'DATA INPUT'!H38","v":"(PLEASE INPUT)"}]
[null,"Offer Summary:"]
[]
[null,"Offer Date:",null,null,null,null,null,null,null,{"$f":"TODAY()","v":"2016-12-21"}]
[null,"Type of Offer:",null,null,null,null,null,null,null,"(PLEASE SELECT)"]
[null,"Registered Course:",null,null,null,null,null,null,null,"(PLEASE SELECT)"]
[]
[]
[null,"School:",null,null,null,null,null,null,null,{"$f":"'DATA INPUT'!H60","v":"(PLEASE SELECT)"}]
[null,"EAP:",null,null,null,null,null,null,null,"(PLEASE SELECT)"]
[null,"Entry Date:",null,null,null,null,null,null,null,{"$f":"'DATA INPUT'!H66","v":"(PLEASE SELECT)"}]
[null,"Entry Level:",null,null,null,null,null,null,null,{"$f":"'DATA INPUT'!H75","v":"(PLEASE SELECT)"}]
[null,"Pre-Sessional:",null,null,null,null,null,null,null,"(PLEASE SELECT)"]
[null,"Semester Start:       ",null,null,null,null,null,null,null,{"$f":"'DATA INPUT'!H66","v":"(PLEASE SELECT)"}]
[null,"Offer Conditions:"]
[]
[null,"(PLEASE SELECT)"]
[null,"PLEASE INSERT CONDITIONS HERE"]
[null,"How to Accept Your Offer:"]
[null,"A. Please sign and return the Decision Form overleaf (email of a scanned version is acceptable) and;\n\nB. Please make payment of:"]
[null,"(PLEASE SELECT)"]
[null,"Please see \"Terms and Conditions\" from the following web link:"]
[null,"http://www.sbc-usst.edu.cn/en/StudyWithUs/InternationalStudents/TermsConditions/Notes "]
[null,"Applying for Your Visa:"]
[null,"By confirming your offer, you can then arrange to apply for your Visa."]
[]
[null,"Please see \"Visa and Residence Permit Application Guide\" on the officail website."]
[]
[]
[]
[]
[null,"Arrival:"]
[null,"Unconditional Offer holders will be sent a Registration Guidance two weeks before Semester starts which includes a Registration Notice, and Registration Procedures specifying important information including the dates of Beginning and Registration."]
[null,"Accommodation:"]
[null,"Accommodation Services will help you find suitable accommodation on campus. For information on different types of rooms on campus, please visit the following link on our website: http://www.sbc-usst.edu.cn/en/StudentSupport/HousingAndDining. Accommodation application link will be sent to you after you have paid deposit."]
[]
[null,"We hope that you will be able to accept our Offer and should you have any questions, please do not hesitate to contact the SBC International Office.\n\n\nYours sincerely\n\n\n\n"]
[]
[null,"__________________________________________________"]
[]
[null,"Director of International Recruitment",null,null,null,null,null,null,null,null,null,null,null,null,null,null,null,null,"Iris Yuan"]
[null,"Offer Date:",null,null,null,null,null,{"$f":"J16","v":"2016-12-21"}]
[]
[]
[]
[]
[null,"By signing this agreement, you indicate that you have read Terms And Conditions listed on http://www.sbc-usst.edu.cn/en/StudyWithUs/InternationalStudents/TermsConditions/Notes , and fully understand and accept the offer of admission."]
[null,null,null,null,null,"Signature:",null,null,null,null,null,null,null,null,null,null,null,"Date:"]

{"sheet":"VISA","index":9,"n_rows":43,"n_cols":32,"rows_kept":43,"cut":false,"hidden":true,"merged":[[6,5,6,20],[7,5,7,20],[8,5,8,20],[15,22,15,29],[16,7,16,13],[22,28,22,30],[23,3,23,8],[42,0,42,31],[43,0,43,31]]}
[]
[]
[]
[]
[]
[]
[null,null,null,null,null,"University of Shanghai for Science & Technology"]
[null,null,null,null,null,"516 Jungong Road, Shanghai 200093, China"]
[null,null,null,null,null,"Tel: +86-21-55271930  Fax: +86-21-55271502",null,null,null,null,null,null,null,null,null,null,null,null,null,null,null,null,null,null,null,null,"Picture"]
[]
[null,null,null,null,"Application Form for International Students "]
[]
[]
["1. 申请人简况 /  Personal information"]
["姓/Family name",null,null,null,null,null,null,{"$f":"'DATA INPUT'!H18","v":"(PLEASE INPUT)"},null,null,null,null,null,null,"名/Given name",null,null,null,null,null,null,null,{"$f":"'DATA INPUT'!H16","v":"(PLEASE INPUT)"}]
["国籍/Nationality",null,null,null,null,null,null,{"$f":"'DATA INPUT'!H28","v":"(PLEASE INPUT)"},null,null,null,null,null,null,"护照号码/Passport No",null,null,null,null,null,null,null,{"$f":"'DATA INPUT'!H42","v":"(PLEASE INPUT)"}]
["出生年月/Date of birth",null,null,null,null,null,null,{"$f":"'DATA INPUT'!H22","v":"(PLEASE INPUT)"},null,null,null,null,null,null,"年/Y",null,"月/M",null,"日/D"]
["出生地点/Place of birth",null,null,null,null,null,null,{"$f":"'DATA INPUT'!H26","v":"(PLEASE INPUT)"}]
["性别/Sex",null,null,{"$f":"IF('DATA INPUT'!H24=\"MALE\",\"M\",\"F\")","v":"F"},null,"婚姻状况/Marital State",null,null,null,null,null,null,null,null,null,null,null,"宗教信仰/Religion"]
["最后学历 / Highest Academic Degree Obtained",null,null,null,null,null,null,null,null,null,null,null,null,null,{"$f":"'DATA INPUT'!H120","v":"(PLEASE SELECT)"},null,null,null,null,null,"职业/occupation"]
["工作或学习单位 / Employer or Institution Affiliated"]
["通知书邮寄地址/Post Address of the admission notice & 邮编/Zip code"]
[null,{"$f":"'DATA INPUT'!H32","v":"(PLEASE INPUT)"},null,null,null,null,null,null,null,null,null,null,null,null,null,null,null,null,null,null,null,null,null,null,null,"Postcode:",null,null,{"$f":"'DATA INPUT'!H34","v":"(PLEASE INPUT)"}]
["电话/Tel",null,null,{"$f":"'DATA INPUT'!H36","v":"(PLEASE INPUT)"},null,null,null,null,null,"传真/Fax",null,null,null,null,null,null,null,null,null,"E-mail",null,{"$f":"'DATA INPUT'!H38","v":"(PLEASE INPUT)"}]
["2. 语言能力 / Language proficiency"]
[null,"汉语Chinese:",null,null,null,{"$f":"IF('DATA INPUT'!H98=\"GOOD\",\"X\",\" \")","v":" "},"Good好",null,null,{"$f":"IF('DATA INPUT'!H98=\"AVERAGE\",\"X\",\" \")","v":" "},"Average一般",null,null,null,null,{"$f":"IF('DATA INPUT'!H98=\"NONE\",\"X\",\" \")","v":" "},"None不会；",null,null,null,{"$f":"IF('DATA INPUT'!H98=\"HSK\",\"X\",\" \")","v":" "},"HSK",null,null,"级"]
["3. 来上海理工大学学习计划/Plan of study in China  (please click what you plan to study)"]
[null,"1) 语言进修生/Language study ",null,null,null,null,null,null,null,null,null,null,null,null,"普通进修生/General Visiting Student "]
[null,null,"专业或专题/Subject or field of study:"]
[]
[null,"2) 本科生/Bachelor's degree ",null,null,null,null,null,null,null,"X"]
[null,null,"申请专业/Majors you apply for:",null,null,null,null,null,null,null,null,null,null,{"$f":"'DATA INPUT'!H63","v":"(PLEASE SELECT ONE)"}]
[]
[null,"3) 硕士研究生/Master's degree",null,null,null,null,null,null,null,null,null,null,null,null,"博士研究生/Doctorate"]
[null,null,"申请专业/Majors you apply for:"]
["4. 申请学习时间/ Duration of specialized study: "]
["自/From",null,null,{"$f":"'DATA INPUT'!H66","v":"(PLEASE SELECT)"},null,null,null,null,null,null,"(年/Year月/Month日/Day)  至/To",null,null,null,null,null,null,null,null,null,null,null,null,null,null,null,null,null,null,null,null,"(年/Year月/Month日/Day)"]
[]
["5. 经费来源 / Source of Funding: ",null,null,null,null,null,null,null,null,null,null,null,null,null,null,"奖学金Scholarship",null,null,null,null,null,null,null,"自费Self-supporting","X",null,null,null,"其他Other "]
["6. 在华事务担保人和电话 / Guarantor in China & Tel"]
[]
["7. 申请人保证 / I hereby affirm that: "]
["1． 上述各项中所提供的情况是真实无误的；\n2． 在中国学习期间遵守中国的法律和学校的规章制度。\n1. All the information in this form is true and correct;\n2. I shall abide by the laws of the Chinese Government and the regulations of the School.\n申请人签名Signature                                                   日期 Date      年/Y      月/M      日/D\n\n"]

{"sheet":"ADMISSION","index":10,"n_rows":38,"n_cols":27,"rows_kept":38,"cut":false,"hidden":true,"merged":[[2,26,2,35],[5,0,5,34],[10,22,10,32],[11,22,11,34],[12,8,12,17],[12,22,12,35],[18,9,18,20],[19,9,19,20],[25,40,25,43],[27,9,27,35],[32,1,32,34],[33,1,33,28],[35,18,35,25],[37,1,37,6],[37,7,37,20],[20,9,22,35]]}
[null,null,null,null,null,null,null,null,null,null,null,null,null,null,null,null,"Admission Notice"]
[]
[null,null,null,null,null,null,null,null,null,null,null,null,null,null,null,null,null,null,null,null,null,null,null,null,null,null,{"$f":"TODAY()","v":"2016-12-21"}]
["Dear",null,null,{"$f":"'DATA INPUT'!H14","v":"(PLEASE SELECT)"},null,{"$f":"'DATA INPUT'!H18","v":"(PLEASE INPUT)"}]
[]
["This letter is a formal Admission Notice to assist you with your visa application to study in China. This Admission Notice serves to confirm that we have received the required fees from you and you have already accepted our formal offer to study the course below at our university college. SBC is pleased to formally accept you as a student on this programme. "]
[]
[null,"Offer Holder:"]
[]
[null,"Family Name:",null,null,null,null,null,null,{"$f":"'DATA INPUT'!H18","v":"(PLEASE INPUT)"},null,null,null,null,null,null,null,null,null,"Nationality:",null,null,null,{"$f":"'DATA INPUT'!H28","v":"(PLEASE INPUT)"}]
[null,"Given Name:",null,null,null,null,null,null,{"$f":"'DATA INPUT'!H16","v":"(PLEASE INPUT)"},null,null,null,null,null,null,null,null,null,"Passport:",null,null,null,{"$f":"'DATA INPUT'!H42","v":"(PLEASE INPUT)"}]
[null,"Male/Female:",null,null,null,null,null,null,{"$f":"'DATA INPUT'!H24","v":"(PLEASE SELECT)"},null,null,null,null,null,null,null,null,null,"Phone:",null,null,null,{"$f":"'DATA INPUT'!H36","v":"(PLEASE INPUT)"}]
[null,"Date of Birth:",null,null,null,null,null,null,{"$f":"'DATA INPUT'!H22","v":"(PLEASE INPUT)"},null,null,null,null,null,null,null,null,null,"Email:",null,null,null,{"$f":"'DATA INPUT'!H38","v":"(PLEASE INPUT)"}]
[]
[]
[]
[null,"Offer Summary:"]
[]
[null,"Offer Date:",null,null,null,null,null,null,null,{"$f":"TODAY()","v":"2016-12-21"}]
[null,"Type of Offer:",null,null,null,null,null,null,null,"(PLEASE SELECT)"]
[null,"Registered Course:",null,null,null,null,null,null,null,{"$f":"OFFER!J18","v":"(PLEASE SELECT)"}]
[]
[]
[null,"School:",null,null,null,null,null,null,null,{"$f":"'DATA INPUT'!H60","v":"(PLEASE SELECT)"}]
[null,"EAP: ",null,null,null,null,null,null,null,"(PLEASE SELECT) "]
[null,"Entry Date:",null,null,null,null,null,null,null,{"$f":"'DATA INPUT'!H66","v":"(PLEASE SELECT)"}]
[null,"Entry Level:",null,null,null,null,null,null,null,{"$f":"'DATA INPUT'!H75","v":"(PLEASE SELECT)"}]
[null,"Pre-Sessional:",null,null,null,null,null,null,null,"(PLEASE SELECT)"]
[null,"Semester Start:   ",null,null,null,null,null,null,null,{"$f":"'DATA INPUT'!H66","v":"(PLEASE SELECT)"}]
[]
[]
[]
[null,"We look forward to welcoming you to our programme.\n\n\n\nYours sincerely\n\n\n\n\n"]
[null,"__________________________________________________"]
[]
[null,"Director of International Recruitment",null,null,null,null,null,null,null,null,null,null,null,null,null,null,null,null,"Iris Yuan"]
[]
[null,"Date:",null,null,null,null,null,{"$f":"J19","v":"2016-12-21"}]

{"sheet":"STUDY PLAN","index":11,"n_rows":72,"n_cols":23,"rows_kept":72,"cut":false,"hidden":true,"merged":[[6,22,6,31],[7,22,7,33],[8,7,8,15],[68,1,68,34]]}
[null,null,null,null,null,null,null,null,null,null,null,null,null,null,null,null,"SBC Study Plan Confirmation"]
[]
[]
[null,"Offer Holder:"]
[]
[null,"Family Name:",null,null,null,null,null,{"$f":"'DATA INPUT'!H18","v":"(PLEASE INPUT)"},null,null,null,null,null,null,null,null,"Nationality:",null,null,null,null,null,{"$f":"'DATA INPUT'!H28","v":"(PLEASE INPUT)"}]
[null,"Given Name:",null,null,null,null,null,{"$f":"'DATA INPUT'!H16","v":"(PLEASE INPUT)"},null,null,null,null,null,null,null,null,"Passport No.:",null,null,null,null,null,{"$f":"'DATA INPUT'!H42","v":"(PLEASE INPUT)"}]
[null,"Male/Female:",null,null,null,null,null,{"$f":"'DATA INPUT'!H24","v":"(PLEASE SELECT)"},null,null,null,null,null,null,null,null,"Contact Phone:",null,null,null,null,null,{"$f":"'DATA INPUT'!H36","v":"(PLEASE INPUT)"}]
[null,"Date of Birth:",null,null,null,null,null,{"$f":"'DATA INPUT'!H22","v":"(PLEASE INPUT)"},null,null,null,null,null,null,null,null,"Contact Email:",null,null,null,null,null,{"$f":"'DATA INPUT'!H38","v":"(PLEASE INPUT)"}]
[]
[]
[null,null,"Pathway Options:",null,null,null,null,null,null,null,null,null,null,null,null,null,null,"Course Category Options:"]
[]
[null,null,null,null,null,null,null,null,null,null,null,null,null,null,null,null,"Business and Economics"]
[]
[null,null,null,null,null,null,null,null,null,null,null,null,null,null,null,null,null,null,null,"Events Management"]
[]
[null,null,null,null,{"$f":"IF('DATA INPUT'!H62=\"4+0 (3+0)\",\"X\",\" \")","v":" "},null,"1+3 (Foundation)",null,null,null,null,null,null,null,null,null,null,null,null,"Business "]
[]
[null,null,null,null,null,null,null,null,null,null,null,null,null,null,null,null,null,null,null,"Engineering"]
[]
[]
[]
[null,null,null,null,null,null,null,null,null,null,null,null,null,null,null,null,"Business and Economics"]
[]
[null,null,null,null,null,null,null,null,null,null,null,null,null,null,null,null,null,null,null,"Events Management"]
[]
[null,null,null,null,{"$f":"IF('DATA INPUT'!H72=\"4+0 (3+0)\",\"X\",\" \")","v":" "},null,"4+0 (3+0)",null,null,null,null,null,null,null,null,null,null,null,null,"Business Management"]
[]
[null,null,null,null,null,null,null,null,null,null,null,null,null,null,null,null,"Science and Engineering"]
[]
[null,null,null,null,null,null,null,null,null,null,null,null,null,null,null,null,null,null,null,"Electrical and Electronic Engineering"]
[]
[null,null,null,null,null,null,null,null,null,null,null,null,null,null,null,null,null,null,null,"Mechanical Engineering"]
[]
[]
[null,null,null,null,null,null,null,null,null,null,null,null,null,null,null,null,"Business and Economics"]
[]
[null,null,null,null,{"$f":"IF('DATA INPUT'!H72=\"3+1 (2+1)\",\"X\",\" \")","v":" "},null,"3+1 (2+1)",null,null,null,null,null,null,null,null,null,null,null,null,"Events Management"]
[]
[]
[null,null,null,null,null,null,null,null,null,null,null,null,null,null,null,null,null,null,null,"Business Management (subject to approval)"]
[]
[]
[]
[null,null,null,null,null,null,null,null,null,null,null,null,null,null,null,null,"Business and Economics"]
[]
[null,null,null,null,{"$f":"IF('DATA INPUT'!H72=\"2+1+1 (1+1+1)\",\"X\",\" \")","v":" "},null,"2+1+1 (1+1+1)",null,null,null,null,null,null,null,null,null,null,null,null,"Events Management"]
[]
[]
[null,null,null,null,null,null,null,null,null,null,null,null,null,null,null,null,null,null,null,"Business Management (subject to approval)"]
[]
[]
[]
[null,null,null,null,null,null,null,null,null,null,null,null,null,null,null,null,"Business and Economics"]
[]
[null,null,null,null,null,null,null,null,null,null,null,null,null,null,null,null,null,null,null,"Business Management"]
[]
[]
[null,null,null," ",{"$f":"IF('DATA INPUT'!H72=\"2+2 (1+2)\",\"X\",\" \")","v":" "},null,"2+2 (1+2)",null,null,null,null,null,null,null,null,null,null,null,null,"Events Management"]
[]
[null,null,null,null,null,null,null,null,null,null,null,null,null,null,null,null,"Science and Engineering"]
[]
[null,null,null,null,null,null,null,null,null,null,null,null,null,null,null,null,null,null,null,"Electrical and Electronic Engineering"]
[]
[null,null,null,null,null,null,null,null,null,null,null,null,null,null,null,null,null,null,null,"Mechanical Engineering"]
[]
[]
[null,"Important Notice：\n\n1. For Year 1 students, after returning this form, they are allowed to change their Route and Stream once at the end of the Semester 1 of Year 1, please refer to Student Handbook for detailed time and procedures of changing Route or Stream. \n\n2. For Year 2 students, this confirmation is the final confirmation of study route and stream, no change will be allowed after submitting this document. \n\n3. Please check the pathway and course options selected are correct, sign and return this form together with other Registration Forms to Registry Department on Check In Day.\n"]
[]
[]
[null,null,null,"Signature:",null,null,null,null,null,null,null,null,null,null,null,null,null,null,null,"Date:"]

{"sheet":"INVOICE","index":12,"n_rows":44,"n_cols":8,"rows_kept":44,"cut":false,"hidden":true,"merged":[[0,0,0,7],[1,0,1,7],[5,5,5,7],[6,5,6,7],[11,6,11,7],[13,0,13,7],[14,0,14,7],[15,0,15,7],[16,0,16,7],[17,0,17,7],[18,0,18,7],[19,0,19,7],[20,0,20,7],[21,0,21,7],[22,0,22,7],[23,0,23,7],[24,0,24,7],[25,0,25,7],[26,0,26,7],[27,0,27,7],[28,0,28,7],[29,0,29,7],[30,0,30,7],[31,0,31,7],[32,0,32,7],[33,0,33,7],[34,0,34,7],[35,0,35,7],[36,0,36,7],[37,0,37,7],[38,0,38,7],[39,0,39,7],[40,0,40,7],[41,0,41,7],[42,0,42,7],[43,0,43,7],[8,7,10,7]]}
["      SBC PROFORMA INVOICE FOR 2017 - 2018"]
["(For International Students Only)"]
[]
["PERSONAL INFORMATION"]
["Family Name:  ",null,null,null,null,{"$f":"'DATA INPUT'!H18","v":"(PLEASE INPUT)"},"Given Name:",{"$f":"'DATA INPUT'!H16","v":"(PLEASE INPUT)"}]
["Program: ",null,null,null,null,{"$f":"'DATA INPUT'!H63","v":"(PLEASE SELECT ONE)"}]
["Grade:",null,null,null,null,{"$f":"'DATA INPUT'!H75","v":"(PLEASE SELECT)"}]
["FEE CHECK LIST",null,null,null,null,null,null,"TOTAL TO PAY"]
[1,"Tuition Fee",null,null,null,null,70000,{"$f":"SUM(G9:G11)","v":76500}]
[2,"NCUK Registration Fee",null,null,null,null,5000]
[3,"Books Fee",null,null," ",null,1500]
["Deposit Required",null,null,null,null,null,"CNY 5,000"]
["METHOD OF PAYMENT"]
["Please select your preferred method of payment and follow the instructions below:"]
[]
["1. Bank Transfer to SBC Bank Account"]
["Please arrange for bank transfer to the bank details below:"]
["Account Name: University of Shanghai for Science and Technology"]
["Account Number: 0207014400000056"]
["Bank Name: China Minsheng Banking Corp.Ltd. Shanghai Branch"]
["Bank Address: No.399 Jiujiang Road, Shanghai"]
["SWIFT Code: MSBC CNBJ 002"]
[]
["账户名：上海理工大学    "]
["账户号: 0207014400000056"]
["开户行： 中国民生银行上海分行黄浦支行"]
["开户行地址：上海市九江路399号"]
["国际电汇代码： MSBC CNBJ 002"]
["2. Bank Card"]
["If you prefer to pay the fees by Bank Card (credit card or debit card) at SBC, please note that only those cards with “Union Pay” can be accepted.  The Finance Department at SBC is the only department allowed to accept any payment from students."]
[]
["3. Cash Payment"]
["If you prefer to pay the fees by cash at SBC please note that the Finance Department at SBC is the only department allowed to accept any payment from students."]
[]
["IMPORTANT NOTES"]
["1. Deposit of RMB 5,000 should be made within 4 weeks of the Offer Date"]
["2. Remaining Full Fees should be made by July 30, 2017 (For Unconditional Offer holders)"]
["3. Failure to receive payment within the specified timeframe may result in the withdrawal of this Offer. If you are experiencing problems in meeting this deadline and you require an extension to pay your deposit, please contact us at international@sbc-usst.edu.cn"]
["4. Should the candidate arrive late for registration, SBC reserves the right to assign students to an alternative course of study, and in certain cases, to withdraw the offer."]
["5. Visa application support will not be provided until the full fees have been received by SBC."]
["6. On-Campus Accommodation Fees are not included here; Please refer to related documents from the Accommodation Office for detailed information about the accommodation application date, payment deadline, application process, payment method and the amount. "]
["7. You will be eligible for a refund of any fees that you have paid if (a) you do not achieve the Offer Requirements, or (b) your Visa Application is denied by the Chinese Embassy.  More refund issues, please chek \"SBC Refund Policy\" from the following link: http://www.sbc-usst.edu.cn/en/StudyWithUs/InternationalStudents/TermsConditions/SBCRefundPolicy "]
["8. If you are progressing to a UK university, please note that UK fees will apply during your period of study in the UK. "]
["9. For international remittance, tuition fee is confirmed receipt and recognized in Renminbi Yuan at the exchange rate on the day of exchange settlement. SBC will return any overcharge or request payment of any shortage. "]

{"sheet":"REGISTRATION","index":13,"n_rows":36,"n_cols":16,"rows_kept":36,"cut":false,"hidden":true,"merged":[[4,1,4,16],[6,5,6,10],[6,15,6,16],[7,5,7,10],[7,15,7,16],[8,5,8,10],[8,15,8,16],[9,5,9,10],[9,15,9,16],[10,12,10,16],[17,4,17,10],[23,10,23,15],[25,7,25,15],[27,7,27,15],[31,8,31,12],[31,15,31,16],[35,8,35,12],[35,15,35,16],[15,4,16,16],[0,1,3,16]]}
[]
[]
[]
[]
[null,"Personal Registration Information Form 个人注册资料表格"]
[]
[null,"Family Name: ",null,null,null,{"$f":"'DATA INPUT'!H18","v":"(PLEASE INPUT)"},null,null,null,null,null,"Nationality:",null,null,null,{"$f":"'DATA INPUT'!H28","v":"(PLEASE INPUT)"}]
[null,"Given Name:",null,null,null,{"$f":"'DATA INPUT'!H16","v":"(PLEASE INPUT)"},null,null,null,null,null,"Passport No:",null,null,null,{"$f":"'DATA INPUT'!H42","v":"(PLEASE INPUT)"}]
[null,"Male/Female:",null,null,null,{"$f":"'DATA INPUT'!H24","v":"(PLEASE SELECT)"},null,null,null,null,null,"Contact Phone:",null,null,null,{"$f":"'DATA INPUT'!H36","v":"(PLEASE INPUT)"}]
[null,"Date of Birth:",null,null,null,{"$f":"'DATA INPUT'!H22","v":"(PLEASE INPUT)"},null,null,null,null,null,"Contact Email:",null,null,null,{"$f":"'DATA INPUT'!H38","v":"(PLEASE INPUT)"}]
[]
[]
[]
[null,"Contact Details"]
[]
[null,"Address:",null,null,{"$f":"'DATA INPUT'!H32","v":"(PLEASE INPUT)"}]
[]
[null,"Postcode:",null,null,{"$f":"'DATA INPUT'!H34","v":"(PLEASE INPUT)"}]
[]
[]
[]
[null,"Former Studies"]
[]
[null,"Highest Level of Study Completed",null,null,null,null,null,null,null,null,{"$f":"'DATA INPUT'!H107","v":"(PLEASE SELECT)"}]
[]
[null,"Name of the School",null,null,null,null,null,{"$f":"'DATA INPUT'!H109","v":"(PLEASE INPUT)"}]
[]
[null,"Year of Completion",null,null,null,null,null,{"$f":"'DATA INPUT'!H115","v":"(PLEASE INPUT)"}]
[]
[]
[]
[null,"Signature of Student:",null,null,null,null,null,null,null,null,null,null,null,null,"Date:"]
[]
[]
[]
[null,"Signature of Parent:",null,null,null,null,null,null,null,null,null,null,null,null,"Date:"]

{"sheet":"ACCOMM","index":14,"n_rows":46,"n_cols":28,"rows_kept":46,"cut":false,"hidden":true,"merged":[[6,22,6,31],[7,22,7,33],[8,7,8,15],[8,22,8,34],[32,1,32,34],[38,5,38,13],[38,27,38,34],[42,1,42,34],[45,1,45,34],[46,1,46,34]]}
[null,null,null,null,null,null,null,null,null,null,null,null,null,null,null,null,null,"SBC Accommodation Application Form 2017"]
[]
[]
[null,"Personal Information:"]
[]
[null,"Family Name:",null,null,null,null,null,{"$f":"'DATA INPUT'!H18","v":"(PLEASE INPUT)"},null,null,null,null,null,null,null,null,"Nationality:",null,null,null,null,null,{"$f":"'DATA INPUT'!H28","v":"(PLEASE INPUT)"}]
[null,"Given Name:",null,null,null,null,null,{"$f":"'DATA INPUT'!H16","v":"(PLEASE INPUT)"},null,null,null,null,null,null,null,null,"Passport No.:",null,null,null,null,null,{"$f":"'DATA INPUT'!H42","v":"(PLEASE INPUT)"}]
[null,"Male/Female:",null,null,null,null,null,{"$f":"'DATA INPUT'!H24","v":"(PLEASE SELECT)"},null,null,null,null,null,null,null,null,"Contact Phone:",null,null,null,null,null,{"$f":"'DATA INPUT'!H36","v":"(PLEASE INPUT)"}]
[null,"Date of Birth:",null,null,null,null,null,{"$f":"'DATA INPUT'!H22","v":"(PLEASE INPUT)"},null,null,null,null,null,null,null,null,"Contact Email:",null,null,null,null,null,{"$f":"'DATA INPUT'!H38","v":"(PLEASE INPUT)"}]
[]
[]
[]
[null,"Please Indicate Preference:"]
[]
[null,null,null,null,null,null,"Block A (Refurbished in 2008) "]
[]
[null,null,null,null,null,null,{"$f":"IF('DATA INPUT'!H64=\"Block A (Refurbished in 2008) - Single Occupancy (Cost: 30,000RMB/per Academic Year)\",\"X\",\" \")","v":" "},null,"Single Occupancy (Cost: 30,000CNY/per Academic Year)"]
[]
[null,null,null,null,null,null,{"$f":"IF('DATA INPUT'!H66=\"Block A (Refurbished in 2008) - Shared 2-Bed Room (Cost: 15,000RMB/per Academic Year)\",\"X\",\" \")","v":" "},null,"Shared 2-Bed Room (Cost: 15,000CNY/per Academic Year)"]
[null,null,null,null,null,null,"Block B (Refurbished in 2012) "]
[]
[null,null,null,null,null,null,{"$f":"IF('DATA INPUT'!H69=\"Block B (Refurbished in 2012) - Single Occupancy (Cost: 36,000RMB/per Academic Year)\",\"X\",\" \")","v":" "},null,"Single Occupancy (Cost: 36,000CNY/per Academic Year)"]
[]
[null,null,null,null,null,null,{"$f":"IF('DATA INPUT'!H71=\"Block B (Refurbished in 2012) - Shared 2-Bed Room (Cost: 18,000RMB/per Academic Year)\",\"X\",\" \")","v":" "},null,"Shared 2-Bed Room (Cost: 18,000CNY/per Academic Year)"]
[]
[null,null,null,null,null,null,{"$f":"IF('DATA INPUT'!H73=\"Block B (Refurbished in 2012) - Shared 3-Bed Room (Cost: 12,500RMB/per Academic Year)\",\"X\",\" \")","v":" "},null,"Shared 3-Bed Room (Cost: 12,500CNY/per Academic Year)*"]
[]
[null,null,null,null,null,null,{"$f":"IF('DATA INPUT'!H75=\"Block B (Refurbished in 2012) - Shared 4-Bed Room (Cost: 8,800RMB/per Academic Year)\",\"X\",\" \")","v":" "},null,"Shared 4-Bed Room (Cost: 8,800CNY/per Academic Year)*"]
[]
[null,null,null,null,null,null,{"$f":"IF('DATA INPUT'!H77=\"Off Campus (Students responsible for own arrangements)\",\"X\",\" \")","v":" "},null,"Off Campus (Students responsible for own arrangements)"]
[]
[null,"Please note that you will need to bring your own personal items, including linens, bedding etc."]
[null,"*For Block B shared 3-bed room & shared 4-bed room,students in these rooms are each provided with upper bunk-bed sleeping units, with desk and bookcase. Furniture is stored under the desk, or in specially designated lockers."]
[]
[]
[null,"Parent/Guardian's Information:"]
[]
[null,"Name姓名:",null,null,null,{"$f":"'DATA INPUT'!H46","v":"(PLEASE INPUT)"},null,null,null,null,null,null,null,null,null,"Relation to Applicant与申请人关系:",null,null,null,null,null,null,null,null,null,null,null,{"$f":"'DATA INPUT'!#REF!","v":{"$error":"#REF!"}}]
[null,"Email邮箱：",null,null,null,{"$f":"'DATA INPUT'!H52","v":"(PLEASE INPUT)"},null,null,null,null,null,null,null,null,null,"Mobile Phone Number手机号码:",null,null,null,null,null,null,null,null,null,null,null,{"$f":"'DATA INPUT'!H48","v":"(PLEASE INPUT)"}]
[]
[]
[null,"Please list any other special requirements here:"]
[]
[]
[]
[null,"Important Notices:\n1. All international students will be expected to pay their Accommodation Fees to International House landlord on Registration Day, either in cash (CNY only) or by Union Card (VISA & MasterCard not accepted).  SBC does not accept the Accommodation Fees from Students. PLEASE DO NOT PAY YOUR ACCOMMODATION FEES TO SBC BANK ACCOUNT. \n2. Due to limited room availability on campus, we can not guarantee that you will be allocated your chosen room type.\n3. Internet access in the dormitories is turned off between 23:00 to 06:00 daily. Students are not permitted to leave their dormitories during this time.\n4. The accommodation fee refund policy should follow the contract offered by the International House landlord.\n5. Residence in dormitories is not permitted during vacations.\n6. Applications on Check-in day will not be accepted.                                                                          "]

{"sheet":"CHECK-IN","index":15,"n_rows":45,"n_cols":35,"rows_kept":45,"cut":false,"hidden":true,"merged":[[6,22,6,31],[7,22,7,33],[8,7,8,15],[25,10,25,21],[35,1,35,34],[42,1,42,34],[25,1,27,8]]}
["SBC Check-in Form for Academic Year 2016/17"]
[]
[]
[null,"Personal Information:"]
[]
[null,"Family Name:",null,null,null,null,null,{"$f":"'DATA INPUT'!H18","v":"(PLEASE INPUT)"},null,null,null,null,null,null,null,null,"Nationality:",null,null,null,null,null,{"$f":"'DATA INPUT'!H28","v":"(PLEASE INPUT)"}]
[null,"Given Name:",null,null,null,null,null,{"$f":"'DATA INPUT'!H16","v":"(PLEASE INPUT)"},null,null,null,null,null,null,null,null,"Passport No.:",null,null,null,null,null,{"$f":"'DATA INPUT'!H42","v":"(PLEASE INPUT)"}]
[null,"Male/Female:",null,null,null,null,null,{"$f":"'DATA INPUT'!H24","v":"(PLEASE SELECT)"},null,null,null,null,null,null,null,null,"Contact Phone:",null,null,null,null,null,{"$f":"'DATA INPUT'!H36","v":"(PLEASE INPUT)"}]
[null,"Date of Birth:",null,null,null,null,null,{"$f":"'DATA INPUT'!H22","v":"(PLEASE INPUT)"},null,null,null,null,null,null,null,null,"Contact Email:",null,null,null,null,null,{"$f":"'DATA INPUT'!H38","v":"(PLEASE INPUT)"}]
[]
[]
[]
[null,"Check-in Date:",null,null,null,null,null,null,null,null,null,null,null,null,null,null,"Accommodation:",null,null,null,null,null,null,null,null,null,null,"On Campus ",null,null,null,null,null,"Off Campus ",{"$f":"IF('DATA INPUT'!H77=\"Off Campus (Students responsible for own arrangements)\",\"X\",\" \")","v":" "}]
[]
[]
[]
[null,"Department:",null,null,null,null,null,null,null,null,"Remarks:",null,null,null,null,null,null,null,null,null,null,null,null,null,null,null,"Signature:",null,null,null,null,null,"Date:"]
[]
[]
[null,"International Office",null,null,null,null,null,null,null,null,"Pick up Welcome Package."]
[]
[]
[null,"Finance Office",null,null,null,null,null,null,null,null,"The student has paid all fees required."]
[]
[]
[null,"Student Management Office (Tutors)",null,null,null,null,null,null,null,null,"(a)The student has been issued with timetable and relevant documents."]
[null,null,null,null,null,null,null,null,null,null,"(b) Has been assigned a personal tutor."]
[null,null,null,null,null,null,null,null,null,null,"(c)Has paid insurance."]
[]
[]
[null,"Registry",null,null,null,null,null,null,null,null,"Registry has received this Check In Form."]
[]
[]
[]
[null,"Please return this form to Registry after completing the procedures above on Check In Day. "]
[null,"For students who need on campus accommodation, please go to Accommodation Building after completing the procedures above. "]
[]
[]
[]
[]
[]
[null,"SBC ACCOMMODATION NOTICE:"]
[null,"This is to certify that the bearer of this notice has paid the fees and completed registration procedures. Please kindly let the student check in. Thanks."]
[]
[null,null,null,"Registrar's Signature:",null,null,null,null,null,null,null,null,null,null,null,null,null,null,null,null,"Date:"]

{"sheet":"CHINESE","index":16,"n_rows":46,"n_cols":26,"rows_kept":46,"cut":false,"hidden":true,"merged":[[3,0,3,37],[9,25,9,34],[10,25,10,36],[11,25,11,36],[24,7,24,33],[30,7,30,33],[31,7,31,33],[32,7,32,33],[33,7,33,33],[44,2,44,19],[45,2,45,19],[45,23,45,37],[47,0,47,17],[49,1,49,36],[22,7,23,33],[28,7,29,33],[17,1,18,36],[40,2,41,33],[37,7,38,33]]}
[]
[]
[]
["Interest in \"Survival Chinese\" and \"With Chinese\" Course Options"]
[]
[]
[null,"Personal Information:"]
[]
[null,"Family Name:",null,null,null,null,null,{"$f":"'DATA INPUT'!H18","v":"(PLEASE INPUT)"},null,null,null,null,null,null,null,null,null,null,null,"Nationality:",null,null,null,null,null,{"$f":"'DATA INPUT'!H28","v":"(PLEASE INPUT)"}]
[null,"Given Name:",null,null,null,null,null,{"$f":"'DATA INPUT'!H16","v":"(PLEASE INPUT)"},null,null,null,null,null,null,null,null,null,null,null,"Passport No.:",null,null,null,null,null,{"$f":"'DATA INPUT'!H42","v":"(PLEASE INPUT)"}]
[null,"Male/Female:",null,null,null,null,null,{"$f":"'DATA INPUT'!H24","v":"(PLEASE SELECT)"},null,null,null,null,null,null,null,null,null,null,null,"Contact Phone:",null,null,null,null,null,{"$f":"'DATA INPUT'!H36","v":"(PLEASE INPUT)"}]
[null,"Date of Birth:",null,null,null,null,null,{"$f":"'DATA INPUT'!H22","v":"(PLEASE INPUT)"},null,null,null,null,null,null,null,null,null,null,null,"Contact Email:",null,null,null,null,null,{"$f":"'DATA INPUT'!H38","v":"(PLEASE INPUT)"}]
[]
[]
[]
[null,"Please Indicate Preference:"]
[]
[null,"All courses at SBC are taught in English. SBC would like to know if you are interested in improving your Chinese language skills while studying in Shanghai. Please choose an Option below*:"]
[]
[]
[null,{"$f":"IF('DATA INPUT'!H103=\"Yes - Option B: An optional non-credit Chinese language and culture module module with an attendance certificate provided (FREE OF CHARGE except book fees).\",\"X\",\" \")","v":" "},null,"Option A: \"Survival Chinese\""]
[]
[null,null,null,null,null,{"$f":"IF('DATA INPUT'!H104=\"Yes - Option B: An optional non-credit Chinese language and culture module module with an attendance certificate provided (FREE OF CHARGE except book fees).\",\"X\",\" \")","v":" "},null,"Yes - I am interested to take a degree taught in English with one additional free module of \"Survival Chinese\" (non-credit) each semester of the first year at SBC. Students at higher levels are not suitable to take Option A."]
[]
[null,null,null,null,null,null,null,"This option will allow students to receive an \"Attendance Certificate\" from SBC based on satisfactory attendance and passing the course requirements, and should significantly enhance career prospects. "]
[]
[null,{"$f":"IF('DATA INPUT'!H102=\"Yes - Option A: A required for-credit Chinese language and culture module each semester (additional tuition fee).\",\"X\",\" \")","v":" "},null,"Option B: \"With Chinese\""]
[]
[null,null,null,null,null,null,null,"Yes - I am interested to take a degree taught in English with one module of Chinese \"required for-credit\" each semester during Years 2, 3 and 4. Students may join Option A above during Year 1. Available with the following courses (for pathway 4+0 only):"]
[]
[null,null,null,null,null,null,null,"● BA Events Management (with Chinese) from University of Huddersfield"]
[null,null,null,null,null,null,null,"● BA Industrial Electronics and Control Engineering (with Chinese) from Liverpool JM University"]
[null,null,null,null,null,null,null,"● BA Manufacturing Systems Engineering (with Chinese) from Liverpool JM University"]
[null,null,null,null,null,null,null,"This option will allow students to receive a bachelors degree graduation certificate from the UK university that actually states (\"With Chinese\") and should greatly enhance career prospects. "]
[]
[null,{"$f":"IF('DATA INPUT'!#REF!=\"No thanks - I do not wish to take part in any Chinese language and culture (basic survival language skills) for life in Shanghai.\",\"X\",\" \")","v":{"$error":"#REF!"}},null,"Option C: No Chinese"]
[]
[null,null,null,null,null,null,null,"No thanks - I wish to focus only on studying the English taught degree programme and I do not wish to take part in SBC's \"with Chinese\" or \"Survival Chinese\" classes."]
[]
[]
[null,null,"* Please note that the \"with Chinese\" options will be subject to numbers."]
[]
[]
[]
[]
[null,null,"Signature: _____________________",null,null,null,null,null,null,null,null,null,null,null,null,null,null,null,null,null,null,null,null,"Date: ______________________"]